{"text_format":"1","workbook":"xlsx","n_sheets":2,"sheets":["jaaroverzicht","up to date"],"not_rendered":{"charts":36,"images":16,"macros":1,"external_links":3,"defined_names":26,"comments":2,"pivot_tables":0},"unopened":[],"bounds":{"document_bytes":16777216,"sheet_cells":100000,"rows_first":2000,"rows_last":500,"rows_between":2000,"halvings":0,"cell_chars":16384,"cell_head_chars":4096},"cells_cut":0,"cells_raw":0,"read":"whole","date_system":"1900"}

{"sheet":"jaaroverzicht","index":0,"n_rows":512,"n_cols":20,"rows_kept":512,"cut":false,"hidden":false,"merged":[[60,1,60,3],[54,1,54,3],[53,1,53,3],[52,1,52,3],[57,1,57,3],[59,1,59,3],[67,1,67,3],[68,1,68,3],[69,1,69,3],[70,1,70,3],[71,1,71,3],[65,1,65,3],[66,1,66,3],[62,1,62,3],[63,1,63,3],[2,17,2,19],[2,3,3,3],[45,1,45,3],[46,1,46,3],[47,1,47,3],[51,1,51,3],[50,1,50,3],[49,1,49,3],[58,1,58,3],[61,1,61,3],[56,1,56,3],[55,1,55,3]]}
[]
[]
[null,null,null,"2017      Jan & Thea","Periode 1","Periode 2","Periode 3","Periode 4","Periode 5","Periode 6","Periode 7","Periode 8","Periode 9","Periode 10","Periode 11","Periode 12",null,"JAAR OVERZICHT"]
[null,"incasso",null,null,"18 jan","17 febr","17 mrt","18 april","18 mei","19 juni","18 juli","18 aug","18 sept","18 okt","17 nov","18 dec",null,"per jaar",null,"per maand"]
[null,"datum",null,null,"16 febr","16 mrt","17 april","17 mei","18 juni","17 juli","17 aug","17 sept","17 okt","16 nov","17 dec","17 jan 2018"]
[null,null,null,"Eind saldo vorige periode",null,{"$f":"E54","v":0},{"$f":"F54","v":0},{"$f":"G54","v":0},0,0,0,0,0,0,0,0]
[null,null,null,"Niet vermeld in de lijst"]
[null,null,null,null,null,null,null,null,null,null,null,null,null,null,null,null,null,{"$f":"SUM(E8:P8)","v":0},null,{"$f":"SUM(R8/12)","v":0}]
[null,null,null,null,null,null,null,null,null,null,null,null,null,null,null,null,null,0,null,0]
[null,null,null,null,null,null,null,null,null,null,null,null,null,null,null,null,null,0,null,0]
[null,null,null,null,null,null,null,null,null,null,null,null,null,null,null,null,null,0,null,0]
[null,null,null,null,null,null,null,null,null,null,null,null,null,null,null,null,null,0,null,0]
[null,null,null,null,null,null,null,null,null,null,null,null,null,null,null,null,null,0,null,0]
[null,null,null,null,null,null,null,null,null,null,null,null,null,null,null,null,null,0,null,0]
[null,null,null,null,null,null,null,null,null,null,null,null,null,null,null,null,null,0,null,0]
[null,null,null,null,null,null,null,null,null,null,null,null,null,null,null,null,null,{"$f":"SUM(E16:P16)","v":0},null,{"$f":"SUM(R16/12)","v":0}]
[null,null,null,null,null,null,null,null,null,null,null,null,null,null,null,null,null,0,null,0]
[null,null,null,null,null,null,null,null,null,null,null,null,null,null,null,null,null,{"$f":"SUM(E18:P18)","v":0},null,{"$f":"SUM(R18/12)","v":0}]
[null,null,null,null,null,null,null,null,null,null,null,null,null,null,null,null,null,{"$f":"SUM(E19:P19)","v":0},null,{"$f":"SUM(R19/12)","v":0}]
[null,null,null,null,null,null,null,null,null,null,null,null,null,null,null,null,null,0,null,0]
[null,null,null,null,null,null,null,null,null,null,null,null,null,null,null,null,null,0,null,0]
[null,null,null,null,null,null,null,null,null,null,null,null,null,null,null,null,null,0,null,0]
[null,null,null,null,null,null,null,null,null,null,null,null,null,null,null,null,null,0,null,0]
[null,null,null,null,null,null,null,null,null,null,null,null,null,null,null,null,null,0,null,0]
[null,null,null,null,null,null,null,null,null,null,null,null,null,null,null,null,null,0,null,0]
[null,null,null,null,null,null,null,null,null,null,null,null,null,null,null,null,null,0,null,0]
[null,null,null,null,null,null,null,null,null,null,null,null,null,null,null,null,null,0,null,0]
[null,null,null,null,null,null,null,null,null,null,null,null,null,null,null,null,null,0,null,0]
[null,null,null,null,null,null,null,null,null,null,null,null,null,null,null,null,null,0,null,0]
[null,null,null,null,null,null,null,null,null,null,null,null,null,null,null,null,null,0,null,0]
[null,null,null,null,null,null,null,null,null,null,null,null,null,null,null,null,null,0,null,0]
[null,null,null,null,null,null,null,null,null,null,null,null,null,null,null,null,null,0,null,0]
[null,null,null,null,null,null,null,null,null,null,null,null,null,null,null,null,null,0,null,0]
[null,null,null,null,null,null,null,null,null,null,null,null,null,null,null,null,null,0,null,0]
[null,null,null,null,null,null,null,null,null,null,null,null,null,null,null,null,null,0,null,0]
[null,null,null,null,null,null,null,null,null,null,null,null,null,null,null,null,null,0,null,0]
[null,null,null,null,null,null,null,null,null,null,null,null,null,null,null,null,null,0,null,0]
[null,null,null,null,null,null,null,null,null,null,null,null,null,null,null,null,null,0,null,0]
[null,null,null,null,null,null,null,null,null,null,null,null,null,null,null,null,null,0,null,0]
[null,null,null,null,null,null,null,null,null,null,null,null,null,null,null,null,null,0,null,0]
[null,null,null,null,null,null,null,null,null,null,null,null,null,null,null,null,null,0,null,0]
[null,null,null,null,null,null,null,null,null,null,null,null,null,null,null,null,null,0,null,0]
[null,null,null,null,null,null,null,null,null,null,null,null,null,null,null,null,null,0,null,0]
[null,null,null,null,null,null,null,null,null,null,null,null,null,null,null,null,null,0,null,0]
[null,null,null,null,null,null,null,null,null,null,null,null,null,null,null,null,null,0,null,0]
[null,"Inkomsten",null,null,{"$f":"SUM(E8:E15)","v":0},{"$f":"SUM(F8:F15)","v":0},0,0,0,0,0,0,0,0,0,0,null,{"$f":"SUM(E46:P46)","v":0},null,{"$f":"SUM(R46/12)","v":0}]
[null,"Uitgaves",null,null,{"$f":"SUM(E16:E45)","v":0},0,{"$f":"SUM(G16:G45)","v":0},{"$f":"SUM(H16:H45)","v":0},{"$f":"SUM(I16:I45)","v":0},{"$f":"SUM(J16:J45)","v":0},{"$f":"SUM(K16:K45)","v":0},0,0,0,0,0,null,0,null,0]
[null,"Inkomsten - Uitgaves",null,null,{"$f":"SUM(E46-E47)","v":0},{"$f":"SUM(F46-F47)","v":0},0,0,0,0,0,0,0,0,0,0,null,{"$f":"SUM(R46-R47)","v":0},null,{"$f":"SUM(T46-T47)","v":0}]
[]
[null,"Er staat nu op je rekening",null,null,{"$f":"'up to date'!E4","v":0},{"$f":"'up to date'!E52","v":0},{"$f":"'up to date'!E100","v":0},{"$f":"'up to date'!E148","v":0},{"$f":"'up to date'!E196","v":0},{"$f":"'up to date'!E244","v":0},{"$f":"'up to date'!E292","v":0},{"$f":"'up to date'!E340","v":0},{"$f":"'up to date'!E388","v":0},{"$f":"'up to date'!E436","v":0},{"$f":"'up to date'!E484","v":0},{"$f":"'up to date'!E532","v":0}]
[null,"meegenomen van je rekening vorige periode",null,null,{"$f":"IF(E50=0,D54)","v":0},0,0,0,0,0,0,0,0,0,0,0]
[null,"nog tegoed (up to date)",null,null,{"$f":"'up to date'!E45","v":0},{"$f":"'up to date'!E93","v":0},{"$f":"'up to date'!E141","v":0},{"$f":"'up to date'!E189","v":0},{"$f":"'up to date'!E237","v":0},{"$f":"'up to date'!E285","v":0},{"$f":"'up to date'!E333","v":0},{"$f":"'up to date'!E381","v":0},{"$f":"'up to date'!E429","v":0},{"$f":"'up to date'!E477","v":0},{"$f":"'up to date'!E525","v":0},{"$f":"'up to date'!E573","v":0}]
[null,"nog te betalen (up to date)",null,null,{"$f":"'up to date'!E46","v":0},{"$f":"'up to date'!E94","v":0},{"$f":"'up to date'!E142","v":0},{"$f":"'up to date'!E190","v":0},{"$f":"'up to date'!E238","v":0},{"$f":"'up to date'!E286","v":0},{"$f":"'up to date'!E334","v":0},{"$f":"'up to date'!E382","v":0},{"$f":"'up to date'!E430","v":0},{"$f":"'up to date'!E478","v":0},{"$f":"'up to date'!E526","v":0},{"$f":"'up to date'!E574","v":0}]
[null,"Alles doorberekend    (zie grafiek)",null,null,{"$f":"SUM(E50+E51+E52-E53)","v":0},0,0,0,0,0,0,0,0,0,0,0]
[]
[]
[]
[]
[]
[null,"inkomsten, die ik al gehad heb",null,null,{"$f":"SUM('up to date'!E7:E14)-('up to date'!I12)","v":0},{"$f":"SUM('up to date'!E55:E62)-('up to date'!I60)","v":0},{"$f":"SUM('up to date'!E103:E110)-('up to date'!I108)","v":0},{"$f":"SUM('up to date'!E151:E158)-('up to date'!I156)","v":0},{"$f":"SUM('up to date'!E199:E206)-('up to date'!I204)","v":0},{"$f":"SUM('up to date'!E247:E254)-('up to date'!I252)","v":0},{"$f":"SUM('up to date'!E295:E302)-('up to date'!I300)","v":0},{"$f":"SUM('up to date'!E343:E350)-('up to date'!I348)","v":0},{"$f":"SUM('up to date'!E391:E398)-('up to date'!I396)","v":0},{"$f":"SUM('up to date'!E439:E446)-('up to date'!I444)","v":0},{"$f":"SUM('up to date'!E487:E494)-('up to date'!I492)","v":0},{"$f":"SUM('up to date'!E535:E542)-('up to date'!I540)","v":0}]
[null,"inkomsten, die ik nog tegoed heb",null,null,{"$f":"'up to date'!E45","v":0},{"$f":"'up to date'!E93","v":0},{"$f":"'up to date'!E141","v":0},{"$f":"'up to date'!E189","v":0},{"$f":"'up to date'!E237","v":0},{"$f":"'up to date'!E285","v":0},{"$f":"'up to date'!E333","v":0},{"$f":"'up to date'!E381","v":0},{"$f":"'up to date'!E429","v":0},{"$f":"'up to date'!E477","v":0},{"$f":"'up to date'!E525","v":0},{"$f":"'up to date'!E573","v":0}]
[null,"totaal",null,null,{"$f":"SUM(E60:E61)","v":0},{"$f":"SUM(F60:F61)","v":0},{"$f":"SUM(G60:G61)","v":0},0,0,0,0,0,0,0,0,0]
[null,"volgens jaaroverzicht",null,null,{"$f":"E46","v":0},{"$f":"F46","v":0},0,0,0,0,0,0,0,0,0,0]
[null,"verschil",null,null,{"$f":"SUM(E62-E63)","v":0},{"$f":"SUM(F62-F63)","v":0},0,0,0,0,0,0,0,0,0,0]
[]
[null,"uitgaves, die ik al betaald heb",null,null,{"$f":"SUM('up to date'!E15:E44)-('up to date'!I31)","v":0},{"$f":"SUM('up to date'!E63:E92)-('up to date'!I79)","v":0},{"$f":"SUM('up to date'!E111:E140)-('up to date'!I127)","v":0},{"$f":"SUM('up to date'!E159:E188)-('up to date'!I175)","v":0},{"$f":"SUM('up to date'!E207:E236)-('up to date'!I223)","v":0},{"$f":"SUM('up to date'!E255:E284)-('up to date'!I271)","v":0},{"$f":"SUM('up to date'!E303:E332)-('up to date'!I319)","v":0},{"$f":"SUM('up to date'!E351:E380)-('up to date'!I367)","v":0},{"$f":"SUM('up to date'!E399:E428)-('up to date'!I415)","v":0},{"$f":"SUM('up to date'!E447:E476)-('up to date'!I463)","v":0},{"$f":"SUM('up to date'!E495:E524)-('up to date'!I511)","v":0},{"$f":"SUM('up to date'!E543:E572)-('up to date'!I559)","v":0}]
[null,"uitgaves, nog te betalen (up to date)",null,null,{"$f":"'up to date'!E46","v":0},{"$f":"'up to date'!E94","v":0},{"$f":"'up to date'!E142","v":0},{"$f":"'up to date'!E190","v":0},{"$f":"'up to date'!E238","v":0},{"$f":"'up to date'!E286","v":0},{"$f":"'up to date'!E334","v":0},{"$f":"'up to date'!E382","v":0},{"$f":"'up to date'!E430","v":0},{"$f":"'up to date'!E478","v":0},{"$f":"'up to date'!E526","v":0},{"$f":"'up to date'!E574","v":0}]
[null,"totaal",null,null,{"$f":"SUM(E66:E67)","v":0},{"$f":"SUM(F66:F67)","v":0},{"$f":"SUM(G66:G67)","v":0},0,0,0,0,0,0,0,0,0]
[null,"volgens jaaroverzicht",null,null,{"$f":"E47","v":0},{"$f":"F47","v":0},0,0,0,0,0,0,0,0,0,0]
[null,"verschil",null,null,{"$f":"SUM(E68-E69)","v":0},{"$f":"SUM(F68-F69)","v":0},0,0,0,0,0,0,0,0,0,0]
[]
[]
[]
[]
[]
[]
[]
[]
[]
[]
[]
[]
[]
[]
[]
[]
[]
[]
[]
[]
[]
[]
[]
[]
[]
[]
[]
[null,"---"]
[]
[]
[]
[]
[]
[]
[]
[]
[]
[]
[]
[]
[]
[]
[]
[]
[]
[]
[]
[]
[]
[]
[]
[]
[]
[]
[]
[]
[]
[]
[]
[]
[]
[]
[]
[]
[]
[]
[]
[]
[]
[]
[]
[]
[]
[null,"---"]
[]
[]
[]
[]
[]
[]
[]
[]
[]
[]
[]
[]
[]
[]
[]
[]
[]
[]
[]
[]
[]
[]
[]
[]
[]
[]
[]
[]
[]
[]
[]
[]
[]
[]
[]
[]
[]
[]
[]
[]
[]
[]
[]
[]
[]
[null,"---"]
[]
[]
[]
[]
[]
[]
[]
[]
[]
[]
[]
[]
[]
[]
[]
[]
[]
[]
[]
[]
[]
[]
[]
[]
[]
[]
[]
[]
[]
[]
[]
[]
[]
[]
[]
[]
[]
[]
[]
[]
[]
[]
[]
[]
[]
[null,"---"]
[]
[]
[]
[]
[]
[]
[]
[]
[]
[]
[]
[]
[]
[]
[]
[]
[]
[]
[]
[]
[]
[]
[]
[]
[]
[]
[]
[]
[]
[]
[]
[]
[]
[]
[]
[]
[]
[]
[]
[]
[]
[]
[]
[]
[]
[]
[]
[]
[]
[]
[]
[]
[]
[]
[]
[]
[]
[]
[]
[]
[]
[]
[]
[]
[]
[]
[]
[]
[]
[]
[]
[]
[]
[]
[]
[]
[]
[]
[]
[]
[]
[]
[]
[]
[]
[]
[]
[]
[]
[]
[]
[null,"---"]
[]
[]
[]
[]
[]
[]
[]
[]
[]
[]
[]
[]
[]
[]
[]
[]
[]
[]
[]
[]
[]
[]
[]
[]
[]
[]
[]
[]
[]
[]
[]
[]
[]
[]
[]
[]
[]
[]
[]
[]
[]
[]
[]
[]
[]
[null,"---"]
[]
[]
[]
[]
[]
[]
[]
[]
[]
[]
[]
[]
[]
[]
[]
[]
[]
[]
[]
[]
[]
[]
[]
[]
[]
[]
[]
[]
[]
[]
[]
[]
[]
[]
[]
[]
[]
[]
[]
[]
[]
[]
[]
[]
[]
[null,"---"]
[]
[]
[]
[]
[]
[]
[]
[]
[]
[]
[]
[]
[]
[]
[]
[]
[]
[]
[]
[]
[]
[]
[]
[]
[]
[]
[]
[]
[]
[]
[]
[]
[]
[]
[]
[]
[]
[]
[]
[]
[]
[]
[]
[]
[]
[null,"---"]
[]
[]
[]
[]
[]
[]
[]
[]
[]
[]
[]
[]
[]
[]
[]
[]
[]
[]
[]
[]
[]
[]
[]
[]
[]
[]
[]
[]
[]
[]
[]
[]
[]
[]
[]
[]
[]
[]
[]
[]
[]
[]
[]
[]
[]
[null,"---"]

{"sheet":"up to date","index":1,"n_rows":2343,"n_cols":20,"rows_kept":2343,"cut":false,"hidden":false,"merged":[[241,4,241,5],[289,4,289,5],[337,4,337,5],[385,4,385,5],[433,4,433,5],[481,4,481,5],[529,4,529,5],[536,13,536,15],[435,13,435,14],[437,13,437,15],[438,13,438,15],[439,13,439,15],[440,13,440,15],[481,13,481,14],[483,13,483,14],[485,13,485,15],[486,13,486,15],[293,13,293,15],[294,13,294,15],[295,13,295,15],[296,13,296,15],[243,4,243,5],[244,4,244,5],[339,4,339,5],[534,13,534,15],[535,13,535,15],[145,19,146,19],[193,17,194,17],[193,19,194,19],[241,17,242,17],[241,19,242,19],[255,13,255,15],[269,13,269,15],[481,17,482,17],[481,19,482,19],[529,17,530,17],[529,19,530,19],[245,13,245,15],[344,13,344,15],[385,13,385,14],[387,13,387,14],[389,13,389,15],[390,13,390,15],[391,13,391,15],[197,13,197,15],[198,13,198,15],[199,13,199,15],[200,13,200,15],[1,13,1,14],[3,13,3,14],[5,13,5,15],[6,13,6,15],[7,13,7,15],[8,13,8,15],[49,13,49,14],[51,13,51,14],[53,13,53,15],[196,4,196,5],[195,4,195,5],[193,4,193,5],[77,17,77,19],[159,13,159,15],[151,13,151,15],[152,13,152,15],[97,17,98,17],[145,17,146,17],[103,13,103,15],[104,13,104,15],[195,13,195,14],[54,13,54,15],[55,13,55,15],[56,13,56,15],[145,1,145,2],[189,1,189,2],[193,1,193,2],[147,4,147,5],[148,4,148,5],[49,17,50,17],[193,13,193,14],[49,4,49,5],[97,4,97,5],[145,4,145,5],[188,1,188,2],[1,1,1,2],[140,1,140,2],[141,1,141,2],[1,17,2,17],[1,19,2,19],[49,1,49,2],[97,1,97,2],[3,4,3,5],[4,4,4,5],[29,13,29,15],[15,13,15,15],[92,1,92,2],[93,1,93,2],[51,4,51,5],[52,4,52,5],[99,4,99,5],[100,4,100,5],[125,17,125,19],[29,17,29,19],[44,1,44,2],[45,1,45,2],[49,19,50,19],[97,19,98,19],[1,4,1,5],[241,13,241,14],[243,13,243,14],[221,13,221,15],[207,13,207,15],[63,13,63,15],[77,13,77,15],[145,13,145,14],[147,13,147,14],[149,13,149,15],[150,13,150,15],[97,13,97,14],[99,13,99,14],[101,13,101,15],[102,13,102,15],[237,1,237,2],[333,1,333,2],[332,1,332,2],[285,1,285,2],[284,1,284,2],[241,1,241,2],[289,1,289,2],[236,1,236,2],[380,1,380,2],[337,1,337,2],[351,13,351,15],[365,13,365,15],[388,4,388,5],[246,13,246,15],[247,13,247,15],[248,13,248,15],[289,13,289,14],[337,13,337,14],[339,13,339,14],[341,13,341,15],[342,13,342,15],[343,13,343,15],[573,1,573,2],[429,1,429,2],[476,1,476,2],[477,1,477,2],[524,1,524,2],[525,1,525,2],[572,1,572,2],[381,1,381,2],[428,1,428,2],[481,1,481,2],[529,1,529,2],[433,1,433,2],[385,1,385,2],[543,13,543,15],[291,4,291,5],[292,4,292,5],[531,4,531,5],[532,4,532,5],[303,13,303,15],[317,13,317,15],[435,4,435,5],[436,4,436,5],[387,4,387,5],[484,4,484,5],[483,4,483,5],[392,13,392,15],[433,13,433,14],[487,13,487,15],[488,13,488,15],[529,13,529,14],[531,13,531,14],[533,13,533,15],[291,13,291,14],[340,4,340,5],[413,13,413,15],[399,13,399,15],[447,13,447,15],[557,13,557,15],[173,17,173,19],[221,17,221,19],[269,17,269,19],[509,13,509,15],[461,13,461,15],[557,17,557,19],[495,13,495,15],[111,13,111,15],[173,13,173,15],[125,13,125,15],[509,17,509,19],[317,17,317,19],[365,17,365,19],[413,17,413,19],[461,17,461,19],[289,17,290,17],[289,19,290,19],[337,17,338,17],[337,19,338,19],[385,17,386,17],[385,19,386,19],[433,17,434,17],[433,19,434,19]]}
[]
[null,{"$f":"CONCATENATE(jaaroverzicht!E3,\" , \",jaaroverzicht!E4,\"  t/m  \",jaaroverzicht!E5)","v":"Periode 1 , 18 jan  t/m  16 febr"},null,null,{"$f":"NOW()","v":"2017-04-24T19:23:03.950"},null,null,null,null,null,null,null,null,"                   vul het huidige saldo in van je rekening",null,null,null,{"$f":"NOW()","v":"2017-04-24T19:23:03.950"},null,{"$f":"NOW()","v":42849.80768460648}]
[null,{"$f":"jaaroverzicht!E5-R2+1","v":-66.807684606479597},{"$f":"IF(B3>=2,\"dagen duurd deze periode nog\",IF(B3=1,\"dag duurd deze periode nog\",\"ga naar de volgende periode !!!\"))","v":"ga naar de volgende periode !!!"}]
[null,null,"      Er staat nu op de rekening : ",null,0,null,null,null,null,null,null,null,null,"             vink aan, wat is af of bijgeschreven"]
[null,"incasso","               Als alles is verekend :",null,{"$f":"E4+I12-I31","v":0},null,null,null,null,null,null,null,null,null,null,null,null,"Deze periode naar bureaublad in .pdf"]
[null,"datum",null,null,null,null,null,null,null,null,null,null,null,"klik op de desbetreffende icoon, voor de internet site"]
[null,{"$f":"jaaroverzicht!B8","v":0},{"$f":"jaaroverzicht!D8","v":0},{"$f":"IF(G7=TRUE,\"\",E7)","v":0},{"$f":"jaaroverzicht!E8","v":0},null,false]
[null,{"$f":"jaaroverzicht!B9","v":0},{"$f":"jaaroverzicht!D9","v":0},{"$f":"IF(G8=TRUE,\"\",E8)","v":0},{"$f":"jaaroverzicht!E9","v":0},null,false]
[null,{"$f":"jaaroverzicht!B10","v":0},{"$f":"jaaroverzicht!D10","v":0},0,{"$f":"jaaroverzicht!E10","v":0},null,false,null,"nog niet "]
[null,{"$f":"jaaroverzicht!B11","v":0},{"$f":"jaaroverzicht!D11","v":0},0,{"$f":"jaaroverzicht!E11","v":0},null,false,null,"ontvangen"]
[null,{"$f":"jaaroverzicht!B12","v":0},{"$f":"jaaroverzicht!D12","v":0},0,{"$f":"jaaroverzicht!E12","v":0},null,false,null,"totaal"]
[null,{"$f":"jaaroverzicht!B13","v":0},{"$f":"jaaroverzicht!D13","v":0},0,{"$f":"jaaroverzicht!E13","v":0},null,false,null,{"$f":"SUM(D7:D14)","v":0}]
[null,{"$f":"jaaroverzicht!B14","v":0},{"$f":"jaaroverzicht!D14","v":0},0,{"$f":"jaaroverzicht!E14","v":0},null,false]
[null,{"$f":"jaaroverzicht!B15","v":0},{"$f":"jaaroverzicht!D15","v":0},0,{"$f":"jaaroverzicht!E15","v":0},null,false]
[null,{"$f":"jaaroverzicht!B16","v":0},{"$f":"jaaroverzicht!D16","v":0},0,{"$f":"jaaroverzicht!E16","v":0},null,false]
[null,{"$f":"jaaroverzicht!B17","v":0},{"$f":"jaaroverzicht!D17","v":0},{"$f":"IF(G16=TRUE,\"\",E16)","v":0},{"$f":"jaaroverzicht!E17","v":0},null,false,null,null,null,null,null,null,"Jaaroverzicht alle inkomsten en uitgave`s"]
[null,{"$f":"jaaroverzicht!B18","v":0},{"$f":"jaaroverzicht!D18","v":0},0,{"$f":"jaaroverzicht!E18","v":0},null,false]
[null,{"$f":"jaaroverzicht!B19","v":0},{"$f":"jaaroverzicht!D19","v":0},0,{"$f":"jaaroverzicht!E19","v":0},null,false]
[null,{"$f":"jaaroverzicht!B20","v":0},{"$f":"jaaroverzicht!D20","v":0},0,{"$f":"jaaroverzicht!E20","v":0},null,false]
[null,{"$f":"jaaroverzicht!B21","v":0},{"$f":"jaaroverzicht!D21","v":0},0,{"$f":"jaaroverzicht!E21","v":0},null,false]
[null,{"$f":"jaaroverzicht!B22","v":0},{"$f":"jaaroverzicht!D22","v":0},0,{"$f":"jaaroverzicht!E22","v":0},null,false]
[null,{"$f":"jaaroverzicht!B23","v":0},{"$f":"jaaroverzicht!D23","v":0},0,{"$f":"jaaroverzicht!E23","v":0},null,false]
[null,{"$f":"jaaroverzicht!B24","v":0},{"$f":"jaaroverzicht!D24","v":0},0,{"$f":"jaaroverzicht!E24","v":0},null,false]
[null,{"$f":"jaaroverzicht!B25","v":0},{"$f":"jaaroverzicht!D25","v":0},0,{"$f":"jaaroverzicht!E25","v":0},null,false]
[null,{"$f":"jaaroverzicht!B26","v":0},{"$f":"jaaroverzicht!D26","v":0},0,{"$f":"jaaroverzicht!E26","v":0},null,false]
[null,{"$f":"jaaroverzicht!B27","v":0},{"$f":"jaaroverzicht!D27","v":0},0,{"$f":"jaaroverzicht!E27","v":0},null,false]
[null,{"$f":"jaaroverzicht!B28","v":0},{"$f":"jaaroverzicht!D28","v":0},0,{"$f":"jaaroverzicht!E28","v":0},null,false]
[null,{"$f":"jaaroverzicht!B29","v":0},{"$f":"jaaroverzicht!D29","v":0},0,{"$f":"jaaroverzicht!E29","v":0},null,false,null,"nog niet"]
[null,{"$f":"jaaroverzicht!B30","v":0},{"$f":"jaaroverzicht!D30","v":0},0,{"$f":"jaaroverzicht!E30","v":0},null,false,null,"betaald"]
[null,{"$f":"jaaroverzicht!B31","v":0},{"$f":"jaaroverzicht!D31","v":0},0,{"$f":"jaaroverzicht!E31","v":0},null,false,null,"totaal",null,null,null,null,"Eindsaldo - per maand",null,null,null,"Hier wordt het eindsaldo steeds meegenomen naar de volgende maand"]
[null,{"$f":"jaaroverzicht!B32","v":0},{"$f":"jaaroverzicht!D32","v":0},0,{"$f":"jaaroverzicht!E32","v":0},null,false,null,{"$f":"SUM(D15:D44)","v":0}]
[null,{"$f":"jaaroverzicht!B33","v":0},{"$f":"jaaroverzicht!D33","v":0},0,{"$f":"jaaroverzicht!E33","v":0},null,false]
[null,{"$f":"jaaroverzicht!B34","v":0},{"$f":"jaaroverzicht!D34","v":0},0,{"$f":"jaaroverzicht!E34","v":0},null,false]
[null,{"$f":"jaaroverzicht!B35","v":0},{"$f":"jaaroverzicht!D35","v":0},0,{"$f":"jaaroverzicht!E35","v":0},null,false]
[null,{"$f":"jaaroverzicht!B36","v":0},{"$f":"jaaroverzicht!D36","v":0},0,{"$f":"jaaroverzicht!E36","v":0},null,false]
[null,{"$f":"jaaroverzicht!B37","v":0},{"$f":"jaaroverzicht!D37","v":0},0,{"$f":"jaaroverzicht!E37","v":0},null,false]
[null,{"$f":"jaaroverzicht!B38","v":0},{"$f":"jaaroverzicht!D38","v":0},0,{"$f":"jaaroverzicht!E38","v":0},null,false]
[null,{"$f":"jaaroverzicht!B39","v":0},{"$f":"jaaroverzicht!D39","v":0},0,{"$f":"jaaroverzicht!E39","v":0},null,false]
[null,{"$f":"jaaroverzicht!B40","v":0},{"$f":"jaaroverzicht!D40","v":0},0,{"$f":"jaaroverzicht!E40","v":0},null,false]
[null,{"$f":"jaaroverzicht!B41","v":0},{"$f":"jaaroverzicht!D41","v":0},0,{"$f":"jaaroverzicht!E41","v":0},null,false]
[null,{"$f":"jaaroverzicht!B42","v":0},{"$f":"jaaroverzicht!D42","v":0},0,{"$f":"jaaroverzicht!E42","v":0},null,false]
[null,{"$f":"jaaroverzicht!B43","v":0},{"$f":"jaaroverzicht!D43","v":0},0,{"$f":"jaaroverzicht!E43","v":0},null,false]
[null,{"$f":"jaaroverzicht!B44","v":0},{"$f":"jaaroverzicht!D44","v":0},0,{"$f":"jaaroverzicht!E44","v":0},null,false]
[null,{"$f":"jaaroverzicht!B45","v":0},{"$f":"jaaroverzicht!D45","v":0},0,{"$f":"jaaroverzicht!E45","v":0},null,false]
[null,"Nog tegoed",null,{"$f":"jaaroverzicht!E46","v":0},{"$f":"I12","v":0},null,false]
[null,"Nog te betalen",null,{"$f":"jaaroverzicht!E47","v":0},{"$f":"I31","v":0},null,false]
[null,null,null,null,null,null,false]
[null,null,null,null,null,null,false]
[null,null,null,null,null,null,false]
[null,{"$f":"CONCATENATE(jaaroverzicht!F3,\" , \",jaaroverzicht!F4,\"  t/m  \",jaaroverzicht!F5)","v":"Periode 2 , 17 febr  t/m  16 mrt"},null,null,{"$f":"NOW()","v":"2017-04-24T19:23:03.950"},null,false,null,null,null,null,null,null,"                   vul het huidige saldo in van je rekening",null,null,null,{"$f":"NOW()","v":"2017-04-24T19:23:03.950"},null,{"$f":"NOW()","v":42849.80768460648}]
[null,{"$f":"jaaroverzicht!F5-R50+1","v":-38.807684606479597},{"$f":"IF(B51>=2,\"dagen duurd deze periode nog\",IF(B51=1,\"dag duurd deze periode nog\",\"ga naar de volgende periode !!!\"))","v":"ga naar de volgende periode !!!"},null,null,null,false]
[null,null,"      Er staat nu op de rekening : ",null,0,null,false,null,null,null,null,null,null,"             vink aan, wat is af of bijgeschreven"]
[null,"incasso","               Als alles is verekend :",null,{"$f":"E52+I60-I79","v":0},null,false,null,null,null,null,null,null,null,null,null,null,"Deze periode naar bureaublad in .pdf"]
[null,"datum",null,null,null,null,false,null,null,null,null,null,null,"klik op de desbetreffende icoon, voor de internet site"]
[null,{"$f":"jaaroverzicht!B8","v":0},{"$f":"jaaroverzicht!D8","v":0},{"$f":"IF(G55=TRUE,\"\",E55)","v":0},{"$f":"jaaroverzicht!F8","v":0},null,false]
[null,{"$f":"jaaroverzicht!B9","v":0},{"$f":"jaaroverzicht!D9","v":0},0,{"$f":"jaaroverzicht!F9","v":0},null,false]
[null,{"$f":"jaaroverzicht!B10","v":0},{"$f":"jaaroverzicht!D10","v":0},0,{"$f":"jaaroverzicht!F10","v":0},null,false,null,"nog niet "]
[null,{"$f":"jaaroverzicht!B11","v":0},{"$f":"jaaroverzicht!D11","v":0},0,{"$f":"jaaroverzicht!F11","v":0},null,false,null,"ontvangen"]
[null,{"$f":"jaaroverzicht!B12","v":0},{"$f":"jaaroverzicht!D12","v":0},0,{"$f":"jaaroverzicht!F12","v":0},null,false,null,"totaal"]
[null,{"$f":"jaaroverzicht!B13","v":0},{"$f":"jaaroverzicht!D13","v":0},0,{"$f":"jaaroverzicht!F13","v":0},null,false,null,{"$f":"SUM(D55:D62)","v":0}]
[null,{"$f":"jaaroverzicht!B14","v":0},{"$f":"jaaroverzicht!D14","v":0},0,{"$f":"jaaroverzicht!F14","v":0},null,false]
[null,{"$f":"jaaroverzicht!B15","v":0},{"$f":"jaaroverzicht!D15","v":0},0,{"$f":"jaaroverzicht!F15","v":0},null,false]
[null,{"$f":"jaaroverzicht!B16","v":0},{"$f":"jaaroverzicht!D16","v":0},0,{"$f":"jaaroverzicht!F16","v":0},null,false]
[null,{"$f":"jaaroverzicht!B17","v":0},{"$f":"jaaroverzicht!D17","v":0},0,{"$f":"jaaroverzicht!F17","v":0},null,false,null,null,null,null,null,null,"Jaaroverzicht alle inkomsten en uitgave`s"]
[null,{"$f":"jaaroverzicht!B18","v":0},{"$f":"jaaroverzicht!D18","v":0},0,{"$f":"jaaroverzicht!F18","v":0},null,false]
[null,{"$f":"jaaroverzicht!B19","v":0},{"$f":"jaaroverzicht!D19","v":0},0,{"$f":"jaaroverzicht!F19","v":0},null,false]
[null,{"$f":"jaaroverzicht!B20","v":0},{"$f":"jaaroverzicht!D20","v":0},0,{"$f":"jaaroverzicht!F20","v":0},null,false]
[null,{"$f":"jaaroverzicht!B21","v":0},{"$f":"jaaroverzicht!D21","v":0},0,{"$f":"jaaroverzicht!F21","v":0},null,false]
[null,{"$f":"jaaroverzicht!B22","v":0},{"$f":"jaaroverzicht!D22","v":0},0,{"$f":"jaaroverzicht!F22","v":0},null,false]
[null,{"$f":"jaaroverzicht!B23","v":0},{"$f":"jaaroverzicht!D23","v":0},0,{"$f":"jaaroverzicht!F23","v":0},null,false]
[null,{"$f":"jaaroverzicht!B24","v":0},{"$f":"jaaroverzicht!D24","v":0},0,{"$f":"jaaroverzicht!F24","v":0},null,false]
[null,{"$f":"jaaroverzicht!B25","v":0},{"$f":"jaaroverzicht!D25","v":0},0,{"$f":"jaaroverzicht!F25","v":0},null,false]
["..",{"$f":"jaaroverzicht!B26","v":0},{"$f":"jaaroverzicht!D26","v":0},0,{"$f":"jaaroverzicht!F26","v":0},null,false]
[null,{"$f":"jaaroverzicht!B27","v":0},{"$f":"jaaroverzicht!D27","v":0},0,{"$f":"jaaroverzicht!F27","v":0},null,false]
[null,{"$f":"jaaroverzicht!B28","v":0},{"$f":"jaaroverzicht!D28","v":0},0,{"$f":"jaaroverzicht!F28","v":0},null,false]
[null,{"$f":"jaaroverzicht!B29","v":0},{"$f":"jaaroverzicht!D29","v":0},0,{"$f":"jaaroverzicht!F29","v":0},null,false,null,"nog niet"]
[null,{"$f":"jaaroverzicht!B30","v":0},{"$f":"jaaroverzicht!D30","v":0},0,{"$f":"jaaroverzicht!F30","v":0},null,false,null,"betaald"]
[null,{"$f":"jaaroverzicht!B31","v":0},{"$f":"jaaroverzicht!D31","v":0},0,{"$f":"jaaroverzicht!F31","v":0},null,false,null,"totaal",null,null,null,null,"Eindsaldo - per maand",null,null,null,"Hier wordt het eindsaldo steeds meegenomen naar de volgende maand"]
[null,{"$f":"jaaroverzicht!B32","v":0},{"$f":"jaaroverzicht!D32","v":0},0,{"$f":"jaaroverzicht!F32","v":0},null,false,null,{"$f":"SUM(D63:D92)","v":0}]
[null,{"$f":"jaaroverzicht!B33","v":0},{"$f":"jaaroverzicht!D33","v":0},0,{"$f":"jaaroverzicht!F33","v":0},null,false]
[null,{"$f":"jaaroverzicht!B34","v":0},{"$f":"jaaroverzicht!D34","v":0},0,{"$f":"jaaroverzicht!F34","v":0},null,false]
[null,{"$f":"jaaroverzicht!B35","v":0},{"$f":"jaaroverzicht!D35","v":0},0,{"$f":"jaaroverzicht!F35","v":0},null,false]
[null,{"$f":"jaaroverzicht!B36","v":0},{"$f":"jaaroverzicht!D36","v":0},0,{"$f":"jaaroverzicht!F36","v":0},null,false]
[null,{"$f":"jaaroverzicht!B37","v":0},{"$f":"jaaroverzicht!D37","v":0},0,{"$f":"jaaroverzicht!F37","v":0},null,false]
[null,{"$f":"jaaroverzicht!B38","v":0},{"$f":"jaaroverzicht!D38","v":0},0,{"$f":"jaaroverzicht!F38","v":0},null,false]
[null,{"$f":"jaaroverzicht!B39","v":0},{"$f":"jaaroverzicht!D39","v":0},0,{"$f":"jaaroverzicht!F39","v":0},null,false]
[null,{"$f":"jaaroverzicht!B40","v":0},{"$f":"jaaroverzicht!D40","v":0},0,{"$f":"jaaroverzicht!F40","v":0},null,false]
[null,{"$f":"jaaroverzicht!B41","v":0},{"$f":"jaaroverzicht!D41","v":0},0,{"$f":"jaaroverzicht!F41","v":0},null,false]
[null,{"$f":"jaaroverzicht!B42","v":0},{"$f":"jaaroverzicht!D42","v":0},0,{"$f":"jaaroverzicht!F42","v":0},null,false]
[null,{"$f":"jaaroverzicht!B43","v":0},{"$f":"jaaroverzicht!D43","v":0},0,{"$f":"jaaroverzicht!F43","v":0},null,false]
[null,{"$f":"jaaroverzicht!B44","v":0},{"$f":"jaaroverzicht!D44","v":0},0,{"$f":"jaaroverzicht!F44","v":0},null,false]
[null,{"$f":"jaaroverzicht!B45","v":0},{"$f":"jaaroverzicht!D45","v":0},0,{"$f":"jaaroverzicht!F45","v":0},null,false]
[null,"Nog tegoed",null,{"$f":"jaaroverzicht!F46","v":0},{"$f":"I60","v":0},null,false]
[null,"Nog te betalen",null,{"$f":"jaaroverzicht!F47","v":0},{"$f":"I79","v":0},null,false]
[null,null,null,null,null,null,false]
[null,null,null,null,null,null,false]
[null,null,null,null,null,null,false]
[null,{"$f":"CONCATENATE(jaaroverzicht!G3,\" , \",jaaroverzicht!G4,\"  t/m  \",jaaroverzicht!G5)","v":"Periode 3 , 17 mrt  t/m  17 april"},null,null,{"$f":"NOW()","v":"2017-04-24T19:23:03.950"},null,false,null,null,null,null,null,null,"                   vul het huidige saldo in van je rekening",null,null,null,{"$f":"NOW()","v":"2017-04-24T19:23:03.950"},null,{"$f":"NOW()","v":42849.80768460648}]
[null,{"$f":"jaaroverzicht!G5-R98+1","v":-6.8076846064795973},{"$f":"IF(B99>=2,\"dagen duurd deze periode nog\",IF(B99=1,\"dag duurd deze periode nog\",\"ga naar de volgende periode !!!\"))","v":"ga naar de volgende periode !!!"},null,null,null,false]
[null,null,"      Er staat nu op de rekening : ",null,0,null,false,null,null,null,null,null,null,"             vink aan, wat is af of bijgeschreven"]
[null,"incasso","               Als alles is verekend :",null,{"$f":"E100+I108-I127","v":0},null,false,null,null,null,null,null,null,null,null,null,null,"Deze periode naar bureaublad in .pdf"]
[null,"datum",null,null,null,null,false,null,null,null,null,null,null,"klik op de desbetreffende icoon, voor de internet site"]
[null,{"$f":"jaaroverzicht!B8","v":0},{"$f":"jaaroverzicht!D8","v":0},{"$f":"IF(G103=TRUE,\"\",E103)","v":0},{"$f":"jaaroverzicht!G8","v":0},null,false]
[null,{"$f":"jaaroverzicht!B9","v":0},{"$f":"jaaroverzicht!D9","v":0},{"$f":"IF(G104=TRUE,\"\",E104)","v":0},{"$f":"jaaroverzicht!G9","v":0},null,false]
[null,{"$f":"jaaroverzicht!B10","v":0},{"$f":"jaaroverzicht!D10","v":0},0,{"$f":"jaaroverzicht!G10","v":0},null,false,null,"nog niet "]
[null,{"$f":"jaaroverzicht!B11","v":0},{"$f":"jaaroverzicht!D11","v":0},0,{"$f":"jaaroverzicht!G11","v":0},null,false,null,"ontvangen"]
[null,{"$f":"jaaroverzicht!B12","v":0},{"$f":"jaaroverzicht!D12","v":0},0,{"$f":"jaaroverzicht!G12","v":0},null,false,null,"totaal"]
[null,{"$f":"jaaroverzicht!B13","v":0},{"$f":"jaaroverzicht!D13","v":0},0,{"$f":"jaaroverzicht!G13","v":0},null,false,null,{"$f":"SUM(D103:D110)","v":0}]
[null,{"$f":"jaaroverzicht!B14","v":0},{"$f":"jaaroverzicht!D14","v":0},0,{"$f":"jaaroverzicht!G14","v":0},null,false]
[null,{"$f":"jaaroverzicht!B15","v":0},{"$f":"jaaroverzicht!D15","v":0},0,{"$f":"jaaroverzicht!G15","v":0},null,false]
[null,{"$f":"jaaroverzicht!B16","v":0},{"$f":"jaaroverzicht!D16","v":0},0,{"$f":"jaaroverzicht!G16","v":0},null,false]
[null,{"$f":"jaaroverzicht!B17","v":0},{"$f":"jaaroverzicht!D17","v":0},{"$f":"IF(G112=TRUE,\"\",E112)","v":0},{"$f":"jaaroverzicht!G17","v":0},null,false,null,null,null,null,null,null,"Jaaroverzicht alle inkomsten en uitgave`s"]
[null,{"$f":"jaaroverzicht!B18","v":0},{"$f":"jaaroverzicht!D18","v":0},0,{"$f":"jaaroverzicht!G18","v":0},null,false]
[null,{"$f":"jaaroverzicht!B19","v":0},{"$f":"jaaroverzicht!D19","v":0},0,{"$f":"jaaroverzicht!G19","v":0},null,false]
[null,{"$f":"jaaroverzicht!B20","v":0},{"$f":"jaaroverzicht!D20","v":0},0,{"$f":"jaaroverzicht!G20","v":0},null,false]
[null,{"$f":"jaaroverzicht!B21","v":0},{"$f":"jaaroverzicht!D21","v":0},0,{"$f":"jaaroverzicht!G21","v":0},null,false]
[null,{"$f":"jaaroverzicht!B22","v":0},{"$f":"jaaroverzicht!D22","v":0},0,{"$f":"jaaroverzicht!G22","v":0},null,false]
[null,{"$f":"jaaroverzicht!B23","v":0},{"$f":"jaaroverzicht!D23","v":0},0,{"$f":"jaaroverzicht!G23","v":0},null,false]
[null,{"$f":"jaaroverzicht!B24","v":0},{"$f":"jaaroverzicht!D24","v":0},0,{"$f":"jaaroverzicht!G24","v":0},null,false]
[null,{"$f":"jaaroverzicht!B25","v":0},{"$f":"jaaroverzicht!D25","v":0},0,{"$f":"jaaroverzicht!G25","v":0},null,false]
["..",{"$f":"jaaroverzicht!B26","v":0},{"$f":"jaaroverzicht!D26","v":0},0,{"$f":"jaaroverzicht!G26","v":0},null,false]
[null,{"$f":"jaaroverzicht!B27","v":0},{"$f":"jaaroverzicht!D27","v":0},0,{"$f":"jaaroverzicht!G27","v":0},null,false]
[null,{"$f":"jaaroverzicht!B28","v":0},{"$f":"jaaroverzicht!D28","v":0},0,{"$f":"jaaroverzicht!G28","v":0},null,false]
[null,{"$f":"jaaroverzicht!B29","v":0},{"$f":"jaaroverzicht!D29","v":0},0,{"$f":"jaaroverzicht!G29","v":0},null,false,null,"nog niet"]
[null,{"$f":"jaaroverzicht!B30","v":0},{"$f":"jaaroverzicht!D30","v":0},0,{"$f":"jaaroverzicht!G30","v":0},null,false,null,"betaald"]
[null,{"$f":"jaaroverzicht!B31","v":0},{"$f":"jaaroverzicht!D31","v":0},0,{"$f":"jaaroverzicht!G31","v":0},null,false,null,"totaal",null,null,null,null,"Eindsaldo - per maand",null,null,null,"Hier wordt het eindsaldo steeds meegenomen naar de volgende maand"]
[null,{"$f":"jaaroverzicht!B32","v":0},{"$f":"jaaroverzicht!D32","v":0},0,{"$f":"jaaroverzicht!G32","v":0},null,false,null,{"$f":"SUM(D111:D140)","v":0}]
[null,{"$f":"jaaroverzicht!B33","v":0},{"$f":"jaaroverzicht!D33","v":0},0,{"$f":"jaaroverzicht!G33","v":0},null,false]
[null,{"$f":"jaaroverzicht!B34","v":0},{"$f":"jaaroverzicht!D34","v":0},0,{"$f":"jaaroverzicht!G34","v":0},null,false]
[null,{"$f":"jaaroverzicht!B35","v":0},{"$f":"jaaroverzicht!D35","v":0},0,{"$f":"jaaroverzicht!G35","v":0},null,false]
[null,{"$f":"jaaroverzicht!B36","v":0},{"$f":"jaaroverzicht!D36","v":0},0,{"$f":"jaaroverzicht!G36","v":0},null,false]
[null,{"$f":"jaaroverzicht!B37","v":0},{"$f":"jaaroverzicht!D37","v":0},0,{"$f":"jaaroverzicht!G37","v":0},null,false]
[null,{"$f":"jaaroverzicht!B38","v":0},{"$f":"jaaroverzicht!D38","v":0},0,{"$f":"jaaroverzicht!G38","v":0},null,false]
[null,{"$f":"jaaroverzicht!B39","v":0},{"$f":"jaaroverzicht!D39","v":0},0,{"$f":"jaaroverzicht!G39","v":0},null,false]
[null,{"$f":"jaaroverzicht!B40","v":0},{"$f":"jaaroverzicht!D40","v":0},0,{"$f":"jaaroverzicht!G40","v":0},null,false]
[null,{"$f":"jaaroverzicht!B41","v":0},{"$f":"jaaroverzicht!D41","v":0},0,{"$f":"jaaroverzicht!G41","v":0},null,false]
[null,{"$f":"jaaroverzicht!B42","v":0},{"$f":"jaaroverzicht!D42","v":0},0,{"$f":"jaaroverzicht!G42","v":0},null,false]
[null,{"$f":"jaaroverzicht!B43","v":0},{"$f":"jaaroverzicht!D43","v":0},0,{"$f":"jaaroverzicht!G43","v":0},null,false]
[null,{"$f":"jaaroverzicht!B44","v":0},{"$f":"jaaroverzicht!D44","v":0},0,{"$f":"jaaroverzicht!G44","v":0},null,false]
[null,{"$f":"jaaroverzicht!B45","v":0},{"$f":"jaaroverzicht!D45","v":0},0,{"$f":"jaaroverzicht!G45","v":0},null,false]
[null,"Nog tegoed",null,{"$f":"jaaroverzicht!G46","v":0},{"$f":"I108","v":0},null,false]
[null,"Nog te betalen",null,{"$f":"jaaroverzicht!G47","v":0},{"$f":"I127","v":0},null,false]
[null,null,null,null,null,null,false,null,null,null,null,null,null,null,0]
[null,null,null,null,null,null,false]
[null,null,null,null,null,null,false]
[null,{"$f":"CONCATENATE(jaaroverzicht!H3,\" , \",jaaroverzicht!H4,\"  t/m  \",jaaroverzicht!H5)","v":"Periode 4 , 18 april  t/m  17 mei"},null,null,{"$f":"NOW()","v":"2017-04-24T19:23:03.950"},null,false,null,null,null,null,null,null,"                   vul het huidige saldo in van je rekening",null,null,null,{"$f":"NOW()","v":"2017-04-24T19:23:03.950"},null,{"$f":"NOW()","v":42849.80768460648}]
[null,{"$f":"jaaroverzicht!H5-R146+1","v":23.192315393520403},{"$f":"IF(B147>=2,\"dagen duurd deze periode nog\",IF(B147=1,\"dag duurd deze periode nog\",\"ga naar de volgende periode !!!\"))","v":"dagen duurd deze periode nog"},null,null,null,false]
[null,null,"      Er staat nu op de rekening : ",null,0,null,false,null,null,null,null,null,null,"             vink aan, wat is af of bijgeschreven"]
[null,"incasso","               Als alles is verekend :",null,{"$f":"E148+I156-I175","v":0},null,false,null,null,null,null,null,null,null,null,null,null,"Deze periode naar bureaublad in .pdf"]
[null,"datum",null,null,null,null,false,null,null,null,null,null,null,"klik op de desbetreffende icoon, voor de internet site"]
[null,{"$f":"jaaroverzicht!B8","v":0},{"$f":"jaaroverzicht!D8","v":0},{"$f":"IF(G151=TRUE,\"\",E151)","v":0},{"$f":"jaaroverzicht!H8","v":0},null,false]
[null,{"$f":"jaaroverzicht!B9","v":0},{"$f":"jaaroverzicht!D9","v":0},{"$f":"IF(G152=TRUE,\"\",E152)","v":0},{"$f":"jaaroverzicht!H9","v":0},null,false]
[null,{"$f":"jaaroverzicht!B10","v":0},{"$f":"jaaroverzicht!D10","v":0},0,{"$f":"jaaroverzicht!H10","v":0},null,false,null,"nog niet "]
[null,{"$f":"jaaroverzicht!B11","v":0},{"$f":"jaaroverzicht!D11","v":0},0,{"$f":"jaaroverzicht!H11","v":0},null,false,null,"ontvangen"]
[null,{"$f":"jaaroverzicht!B12","v":0},{"$f":"jaaroverzicht!D12","v":0},0,{"$f":"jaaroverzicht!H12","v":0},null,false,null,"totaal"]
[null,{"$f":"jaaroverzicht!B13","v":0},{"$f":"jaaroverzicht!D13","v":0},0,{"$f":"jaaroverzicht!H13","v":0},null,false,null,{"$f":"SUM(D151:D158)","v":0}]
[null,{"$f":"jaaroverzicht!B14","v":0},{"$f":"jaaroverzicht!D14","v":0},0,{"$f":"jaaroverzicht!H14","v":0},null,false]
[null,{"$f":"jaaroverzicht!B15","v":0},{"$f":"jaaroverzicht!D15","v":0},0,{"$f":"jaaroverzicht!H15","v":0},null,false]
[null,{"$f":"jaaroverzicht!B16","v":0},{"$f":"jaaroverzicht!D16","v":0},0,{"$f":"jaaroverzicht!H16","v":0},null,false]
[null,{"$f":"jaaroverzicht!B17","v":0},{"$f":"jaaroverzicht!D17","v":0},{"$f":"IF(G160=TRUE,\"\",E160)","v":0},{"$f":"jaaroverzicht!H17","v":0},null,false,null,null,null,null,null,null,"Jaaroverzicht alle inkomsten en uitgave`s"]
[null,{"$f":"jaaroverzicht!B18","v":0},{"$f":"jaaroverzicht!D18","v":0},0,{"$f":"jaaroverzicht!H18","v":0},null,false]
[null,{"$f":"jaaroverzicht!B19","v":0},{"$f":"jaaroverzicht!D19","v":0},0,{"$f":"jaaroverzicht!H19","v":0},null,false]
[null,{"$f":"jaaroverzicht!B20","v":0},{"$f":"jaaroverzicht!D20","v":0},{"$f":"IF(G163=TRUE,\"\",E163)","v":0},{"$f":"jaaroverzicht!H20","v":0},null,false]
[null,{"$f":"jaaroverzicht!B21","v":0},{"$f":"jaaroverzicht!D21","v":0},0,{"$f":"jaaroverzicht!H21","v":0},null,false]
[null,{"$f":"jaaroverzicht!B22","v":0},{"$f":"jaaroverzicht!D22","v":0},0,{"$f":"jaaroverzicht!H22","v":0},null,false]
[null,{"$f":"jaaroverzicht!B23","v":0},{"$f":"jaaroverzicht!D23","v":0},0,{"$f":"jaaroverzicht!H23","v":0},null,false,null,null,null,null,null,null,null,null,null,null,"Reken machine"]
[null,{"$f":"jaaroverzicht!B24","v":0},{"$f":"jaaroverzicht!D24","v":0},{"$f":"IF(G167=TRUE,\"\",E167)","v":0},{"$f":"jaaroverzicht!H24","v":0},null,false]
[null,{"$f":"jaaroverzicht!B25","v":0},{"$f":"jaaroverzicht!D25","v":0},0,{"$f":"jaaroverzicht!H25","v":0},null,false]
["..",{"$f":"jaaroverzicht!B26","v":0},{"$f":"jaaroverzicht!D26","v":0},0,{"$f":"jaaroverzicht!H26","v":0},null,false]
[null,{"$f":"jaaroverzicht!B27","v":0},{"$f":"jaaroverzicht!D27","v":0},0,{"$f":"jaaroverzicht!H27","v":0},null,false]
[null,{"$f":"jaaroverzicht!B28","v":0},{"$f":"jaaroverzicht!D28","v":0},0,{"$f":"jaaroverzicht!H28","v":0},null,false]
[null,{"$f":"jaaroverzicht!B29","v":0},{"$f":"jaaroverzicht!D29","v":0},0,{"$f":"jaaroverzicht!H29","v":0},null,false,null,"nog niet"]
[null,{"$f":"jaaroverzicht!B30","v":0},{"$f":"jaaroverzicht!D30","v":0},0,{"$f":"jaaroverzicht!H30","v":0},null,false,null,"betaald"]
[null,{"$f":"jaaroverzicht!B31","v":0},{"$f":"jaaroverzicht!D31","v":0},0,{"$f":"jaaroverzicht!H31","v":0},null,false,null,"totaal",null,null,null,null,"Eindsaldo - per maand",null,null,null,"Hier wordt het eindsaldo steeds meegenomen naar de volgende maand"]
[null,{"$f":"jaaroverzicht!B32","v":0},{"$f":"jaaroverzicht!D32","v":0},0,{"$f":"jaaroverzicht!H32","v":0},null,false,null,{"$f":"SUM(D159:D188)","v":0}]
[null,{"$f":"jaaroverzicht!B33","v":0},{"$f":"jaaroverzicht!D33","v":0},0,{"$f":"jaaroverzicht!H33","v":0},null,false]
[null,{"$f":"jaaroverzicht!B34","v":0},{"$f":"jaaroverzicht!D34","v":0},0,{"$f":"jaaroverzicht!H34","v":0},null,false]
[null,{"$f":"jaaroverzicht!B35","v":0},{"$f":"jaaroverzicht!D35","v":0},0,{"$f":"jaaroverzicht!H35","v":0},null,false]
[null,{"$f":"jaaroverzicht!B36","v":0},{"$f":"jaaroverzicht!D36","v":0},0,{"$f":"jaaroverzicht!H36","v":0},null,false]
[null,{"$f":"jaaroverzicht!B37","v":0},{"$f":"jaaroverzicht!D37","v":0},0,{"$f":"jaaroverzicht!H37","v":0},null,false]
[null,{"$f":"jaaroverzicht!B38","v":0},{"$f":"jaaroverzicht!D38","v":0},0,{"$f":"jaaroverzicht!H38","v":0},null,false]
[null,{"$f":"jaaroverzicht!B39","v":0},{"$f":"jaaroverzicht!D39","v":0},0,{"$f":"jaaroverzicht!H39","v":0},null,false]
[null,{"$f":"jaaroverzicht!B40","v":0},{"$f":"jaaroverzicht!D40","v":0},0,{"$f":"jaaroverzicht!H40","v":0},null,false]
[null,{"$f":"jaaroverzicht!B41","v":0},{"$f":"jaaroverzicht!D41","v":0},0,{"$f":"jaaroverzicht!H41","v":0},null,false]
[null,{"$f":"jaaroverzicht!B42","v":0},{"$f":"jaaroverzicht!D42","v":0},0,{"$f":"jaaroverzicht!H42","v":0},null,false]
[null,{"$f":"jaaroverzicht!B43","v":0},{"$f":"jaaroverzicht!D43","v":0},0,{"$f":"jaaroverzicht!H43","v":0},null,false]
[null,{"$f":"jaaroverzicht!B44","v":0},{"$f":"jaaroverzicht!D44","v":0},0,{"$f":"jaaroverzicht!H44","v":0},null,false]
[null,{"$f":"jaaroverzicht!B45","v":0},{"$f":"jaaroverzicht!D45","v":0},0,{"$f":"jaaroverzicht!H45","v":0},null,false]
[null,"Nog tegoed",null,{"$f":"jaaroverzicht!H46","v":0},{"$f":"I156","v":0},null,false]
[null,"Nog te betalen",null,{"$f":"jaaroverzicht!H47","v":0},{"$f":"I175","v":0},null,false]
[null,null,null,null,null,null,false]
[null,null,null,null,null,null,false]
[null,null,null,null,null,null,false]
[null,{"$f":"CONCATENATE(jaaroverzicht!I3,\" , \",jaaroverzicht!I4,\"  t/m  \",jaaroverzicht!I5)","v":"Periode 5 , 18 mei  t/m  18 juni"},null,null,{"$f":"NOW()","v":"2017-04-24T19:23:03.950"},null,false,null,null,null,null,null,null,"                   vul het huidige saldo in van je rekening",null,null,null,{"$f":"NOW()","v":"2017-04-24T19:23:03.950"},null,{"$f":"NOW()","v":42849.80768460648}]
[null,{"$f":"jaaroverzicht!I5-R194+1","v":55.192315393520403},{"$f":"IF(B195>=2,\"dagen duurd deze periode nog\",IF(B95=1,\"dag duurd deze periode nog\",\"ga naar de volgende periode !!!\"))","v":"dagen duurd deze periode nog"},null,null,null,false]
[null,null,"      Er staat nu op de rekening : ",null,0,null,false,null,null,null,null,null,null,"             vink aan, wat is af of bijgeschreven"]
[null,"incasso","               Als alles is verekend :",null,{"$f":"E196+I204-I223","v":0},null,false,null,null,null,null,null,null,null,null,null,null,"Deze periode naar bureaublad in .pdf"]
[null,"datum",null,null,null,null,false,null,null,null,null,null,null,"klik op de desbetreffende icoon, voor de internet site"]
[null,{"$f":"jaaroverzicht!B8","v":0},{"$f":"jaaroverzicht!D8","v":0},{"$f":"IF(G199=TRUE,\"\",E199)","v":0},{"$f":"jaaroverzicht!I8","v":0},null,false]
[null,{"$f":"jaaroverzicht!B9","v":0},{"$f":"jaaroverzicht!D9","v":0},{"$f":"IF(G200=TRUE,\"\",E200)","v":0},{"$f":"jaaroverzicht!I9","v":0},null,false]
[null,{"$f":"jaaroverzicht!B10","v":0},{"$f":"jaaroverzicht!D10","v":0},0,{"$f":"jaaroverzicht!I10","v":0},null,false,null,"nog niet "]
[null,{"$f":"jaaroverzicht!B11","v":0},{"$f":"jaaroverzicht!D11","v":0},0,{"$f":"jaaroverzicht!I11","v":0},null,false,null,"ontvangen"]
[null,{"$f":"jaaroverzicht!B12","v":0},{"$f":"jaaroverzicht!D12","v":0},0,{"$f":"jaaroverzicht!I12","v":0},null,false,null,"totaal"]
[null,{"$f":"jaaroverzicht!B13","v":0},{"$f":"jaaroverzicht!D13","v":0},0,{"$f":"jaaroverzicht!I13","v":0},null,false,null,{"$f":"SUM(D199:D206)","v":0}]
[null,{"$f":"jaaroverzicht!B14","v":0},{"$f":"jaaroverzicht!D14","v":0},0,{"$f":"jaaroverzicht!I14","v":0},null,false]
[null,{"$f":"jaaroverzicht!B15","v":0},{"$f":"jaaroverzicht!D15","v":0},0,{"$f":"jaaroverzicht!I15","v":0},null,false]
[null,{"$f":"jaaroverzicht!B16","v":0},{"$f":"jaaroverzicht!D16","v":0},0,{"$f":"jaaroverzicht!I16","v":0},null,false]
[null,{"$f":"jaaroverzicht!B17","v":0},{"$f":"jaaroverzicht!D17","v":0},{"$f":"IF(G208=TRUE,\"\",E208)","v":0},{"$f":"jaaroverzicht!I17","v":0},null,false,null,null,null,null,null,null,"Jaaroverzicht alle inkomsten en uitgave`s"]
[null,{"$f":"jaaroverzicht!B18","v":0},{"$f":"jaaroverzicht!D18","v":0},0,{"$f":"jaaroverzicht!I18","v":0},null,false]
[null,{"$f":"jaaroverzicht!B19","v":0},{"$f":"jaaroverzicht!D19","v":0},0,{"$f":"jaaroverzicht!I19","v":0},null,false]
[null,{"$f":"jaaroverzicht!B20","v":0},{"$f":"jaaroverzicht!D20","v":0},0,{"$f":"jaaroverzicht!I20","v":0},null,false]
[null,{"$f":"jaaroverzicht!B21","v":0},{"$f":"jaaroverzicht!D21","v":0},0,{"$f":"jaaroverzicht!I21","v":0},null,false]
[null,{"$f":"jaaroverzicht!B22","v":0},{"$f":"jaaroverzicht!D22","v":0},0,{"$f":"jaaroverzicht!I22","v":0},null,false]
[null,{"$f":"jaaroverzicht!B23","v":0},{"$f":"jaaroverzicht!D23","v":0},{"$f":"IF(G214=TRUE,\"\",E214)","v":0},{"$f":"jaaroverzicht!I23","v":0},null,false]
[null,{"$f":"jaaroverzicht!B24","v":0},{"$f":"jaaroverzicht!D24","v":0},0,{"$f":"jaaroverzicht!I24","v":0},null,false]
[null,{"$f":"jaaroverzicht!B25","v":0},{"$f":"jaaroverzicht!D25","v":0},0,{"$f":"jaaroverzicht!I25","v":0},null,false]
["..",{"$f":"jaaroverzicht!B26","v":0},{"$f":"jaaroverzicht!D26","v":0},0,{"$f":"jaaroverzicht!I26","v":0},null,false]
[null,{"$f":"jaaroverzicht!B27","v":0},{"$f":"jaaroverzicht!D27","v":0},0,{"$f":"jaaroverzicht!I27","v":0},null,false]
[null,{"$f":"jaaroverzicht!B28","v":0},{"$f":"jaaroverzicht!D28","v":0},0,{"$f":"jaaroverzicht!I28","v":0},null,false]
[null,{"$f":"jaaroverzicht!B29","v":0},{"$f":"jaaroverzicht!D29","v":0},0,{"$f":"jaaroverzicht!I29","v":0},null,false,null,"nog niet"]
[null,{"$f":"jaaroverzicht!B30","v":0},{"$f":"jaaroverzicht!D30","v":0},0,{"$f":"jaaroverzicht!I30","v":0},null,false,null,"betaald"]
[null,{"$f":"jaaroverzicht!B31","v":0},{"$f":"jaaroverzicht!D31","v":0},0,{"$f":"jaaroverzicht!I31","v":0},null,false,null,"totaal",null,null,null,null,"Eindsaldo - per maand",null,null,null,"Hier wordt het eindsaldo steeds meegenomen naar de volgende maand"]
[null,{"$f":"jaaroverzicht!B32","v":0},{"$f":"jaaroverzicht!D32","v":0},0,{"$f":"jaaroverzicht!I32","v":0},null,false,null,{"$f":"SUM(D207:D236)","v":0}]
[null,{"$f":"jaaroverzicht!B33","v":0},{"$f":"jaaroverzicht!D33","v":0},0,{"$f":"jaaroverzicht!I33","v":0},null,false]
[null,{"$f":"jaaroverzicht!B34","v":0},{"$f":"jaaroverzicht!D34","v":0},0,{"$f":"jaaroverzicht!I34","v":0},null,false]
[null,{"$f":"jaaroverzicht!B35","v":0},{"$f":"jaaroverzicht!D35","v":0},0,{"$f":"jaaroverzicht!I35","v":0},null,false]
[null,{"$f":"jaaroverzicht!B36","v":0},{"$f":"jaaroverzicht!D36","v":0},0,{"$f":"jaaroverzicht!I36","v":0},null,false]
[null,{"$f":"jaaroverzicht!B37","v":0},{"$f":"jaaroverzicht!D37","v":0},0,{"$f":"jaaroverzicht!I37","v":0},null,false]
[null,{"$f":"jaaroverzicht!B38","v":0},{"$f":"jaaroverzicht!D38","v":0},0,{"$f":"jaaroverzicht!I38","v":0},null,false]
[null,{"$f":"jaaroverzicht!B39","v":0},{"$f":"jaaroverzicht!D39","v":0},0,{"$f":"jaaroverzicht!I39","v":0},null,false]
[null,{"$f":"jaaroverzicht!B40","v":0},{"$f":"jaaroverzicht!D40","v":0},0,{"$f":"jaaroverzicht!I40","v":0},null,false]
[null,{"$f":"jaaroverzicht!B41","v":0},{"$f":"jaaroverzicht!D41","v":0},0,{"$f":"jaaroverzicht!I41","v":0},null,false]
[null,{"$f":"jaaroverzicht!B42","v":0},{"$f":"jaaroverzicht!D42","v":0},0,{"$f":"jaaroverzicht!I42","v":0},null,false]
[null,{"$f":"jaaroverzicht!B43","v":0},{"$f":"jaaroverzicht!D43","v":0},0,{"$f":"jaaroverzicht!I43","v":0},null,false]
[null,{"$f":"jaaroverzicht!B44","v":0},{"$f":"jaaroverzicht!D44","v":0},0,{"$f":"jaaroverzicht!I44","v":0},null,false]
[null,{"$f":"jaaroverzicht!B45","v":0},{"$f":"jaaroverzicht!D45","v":0},0,{"$f":"jaaroverzicht!I45","v":0},null,false]
[null,"Nog tegoed",null,{"$f":"jaaroverzicht!I46","v":0},{"$f":"I204","v":0},null,false]
[null,"Nog te betalen",null,{"$f":"jaaroverzicht!I47","v":0},{"$f":"I223","v":0},null,false]
[null,null,null,null,null,null,false]
[null,null,null,null,null,null,false]
[null,null,null,null,null,null,false]
[null,{"$f":"CONCATENATE(jaaroverzicht!J3,\" , \",jaaroverzicht!J4,\"  t/m  \",jaaroverzicht!J5)","v":"Periode 6 , 19 juni  t/m  17 juli"},null,null,{"$f":"NOW()","v":"2017-04-24T19:23:03.950"},null,false,null,null,null,null,null,null,"                   vul het huidige saldo in van je rekening",null,null,null,{"$f":"NOW()","v":"2017-04-24T19:23:03.950"},null,{"$f":"NOW()","v":42849.80768460648}]
[null,{"$f":"jaaroverzicht!J5-R242+1","v":84.192315393520403},{"$f":"IF(B243>=2,\"dagen duurd deze periode nog\",IF(B243=1,\"dag duurd deze periode nog\",\"ga naar de volgende periode !!!\"))","v":"dagen duurd deze periode nog"},null,null,null,false]
[null,null,"      Er staat nu op de rekening : ",null,0,null,false,null,null,null,null,null,null,"             vink aan, wat is af of bijgeschreven"]
[null,"incasso","               Als alles is verekend :",null,{"$f":"E244+I252-I271","v":0},null,false,null,null,null,null,null,null,null,null,null,null,"Deze periode naar bureaublad in .pdf"]
[null,"datum",null,null,null,null,false,null,null,null,null,null,null,"klik op de desbetreffende icoon, voor de internet site"]
[null,{"$f":"jaaroverzicht!B8","v":0},{"$f":"jaaroverzicht!D8","v":0},{"$f":"IF(G247=TRUE,\"\",E247)","v":0},{"$f":"jaaroverzicht!J8","v":0},null,false]
[null,{"$f":"jaaroverzicht!B9","v":0},{"$f":"jaaroverzicht!D9","v":0},{"$f":"IF(G248=TRUE,\"\",E248)","v":0},{"$f":"jaaroverzicht!J9","v":0},null,false]
[null,{"$f":"jaaroverzicht!B10","v":0},{"$f":"jaaroverzicht!D10","v":0},0,{"$f":"jaaroverzicht!J10","v":0},null,false,null,"nog niet "]
[null,{"$f":"jaaroverzicht!B11","v":0},{"$f":"jaaroverzicht!D11","v":0},0,{"$f":"jaaroverzicht!J11","v":0},null,false,null,"ontvangen"]
[null,{"$f":"jaaroverzicht!B12","v":0},{"$f":"jaaroverzicht!D12","v":0},0,{"$f":"jaaroverzicht!J12","v":0},null,false,null,"totaal"]
[null,{"$f":"jaaroverzicht!B13","v":0},{"$f":"jaaroverzicht!D13","v":0},0,{"$f":"jaaroverzicht!J13","v":0},null,false,null,{"$f":"SUM(D247:D254)","v":0}]
[null,{"$f":"jaaroverzicht!B14","v":0},{"$f":"jaaroverzicht!D14","v":0},0,{"$f":"jaaroverzicht!J14","v":0},null,false]
[null,{"$f":"jaaroverzicht!B15","v":0},{"$f":"jaaroverzicht!D15","v":0},0,{"$f":"jaaroverzicht!J15","v":0},null,false]
[null,{"$f":"jaaroverzicht!B16","v":0},{"$f":"jaaroverzicht!D16","v":0},0,{"$f":"jaaroverzicht!J16","v":0},null,false]
[null,{"$f":"jaaroverzicht!B17","v":0},{"$f":"jaaroverzicht!D17","v":0},{"$f":"IF(G256=TRUE,\"\",E256)","v":0},{"$f":"jaaroverzicht!J17","v":0},null,false,null,null,null,null,null,null,"Jaaroverzicht alle inkomsten en uitgave`s"]
[null,{"$f":"jaaroverzicht!B18","v":0},{"$f":"jaaroverzicht!D18","v":0},0,{"$f":"jaaroverzicht!J18","v":0},null,false]
[null,{"$f":"jaaroverzicht!B19","v":0},{"$f":"jaaroverzicht!D19","v":0},0,{"$f":"jaaroverzicht!J19","v":0},null,false]
[null,{"$f":"jaaroverzicht!B20","v":0},{"$f":"jaaroverzicht!D20","v":0},0,{"$f":"jaaroverzicht!J20","v":0},null,false]
[null,{"$f":"jaaroverzicht!B21","v":0},{"$f":"jaaroverzicht!D21","v":0},0,{"$f":"jaaroverzicht!J21","v":0},null,false]
[null,{"$f":"jaaroverzicht!B22","v":0},{"$f":"jaaroverzicht!D22","v":0},{"$f":"IF(G261=TRUE,\"\",E261)","v":0},{"$f":"jaaroverzicht!J22","v":0},null,false]
[null,{"$f":"jaaroverzicht!B23","v":0},{"$f":"jaaroverzicht!D23","v":0},0,{"$f":"jaaroverzicht!J23","v":0},null,false]
[null,{"$f":"jaaroverzicht!B24","v":0},{"$f":"jaaroverzicht!D24","v":0},0,{"$f":"jaaroverzicht!J24","v":0},null,false]
[null,{"$f":"jaaroverzicht!B25","v":0},{"$f":"jaaroverzicht!D25","v":0},0,{"$f":"jaaroverzicht!J25","v":0},null,false]
["..",{"$f":"jaaroverzicht!B26","v":0},{"$f":"jaaroverzicht!D26","v":0},0,{"$f":"jaaroverzicht!J26","v":0},null,false]
[null,{"$f":"jaaroverzicht!B27","v":0},{"$f":"jaaroverzicht!D27","v":0},0,{"$f":"jaaroverzicht!J27","v":0},null,false]
[null,{"$f":"jaaroverzicht!B28","v":0},{"$f":"jaaroverzicht!D28","v":0},0,{"$f":"jaaroverzicht!J28","v":0},null,false]
[null,{"$f":"jaaroverzicht!B29","v":0},{"$f":"jaaroverzicht!D29","v":0},0,{"$f":"jaaroverzicht!J29","v":0},null,false,null,"nog niet"]
[null,{"$f":"jaaroverzicht!B30","v":0},{"$f":"jaaroverzicht!D30","v":0},0,{"$f":"jaaroverzicht!J30","v":0},null,false,null,"betaald"]
[null,{"$f":"jaaroverzicht!B31","v":0},{"$f":"jaaroverzicht!D31","v":0},0,{"$f":"jaaroverzicht!J31","v":0},null,false,null,"totaal",null,null,null,null,"Eindsaldo - per maand",null,null,null,"Hier wordt het eindsaldo steeds meegenomen naar de volgende maand"]
[null,{"$f":"jaaroverzicht!B32","v":0},{"$f":"jaaroverzicht!D32","v":0},0,{"$f":"jaaroverzicht!J32","v":0},null,false,null,{"$f":"SUM(D255:D284)","v":0}]
[null,{"$f":"jaaroverzicht!B33","v":0},{"$f":"jaaroverzicht!D33","v":0},0,{"$f":"jaaroverzicht!J33","v":0},null,false]
[null,{"$f":"jaaroverzicht!B34","v":0},{"$f":"jaaroverzicht!D34","v":0},0,{"$f":"jaaroverzicht!J34","v":0},null,false]
[null,{"$f":"jaaroverzicht!B35","v":0},{"$f":"jaaroverzicht!D35","v":0},0,{"$f":"jaaroverzicht!J35","v":0},null,false]
[null,{"$f":"jaaroverzicht!B36","v":0},{"$f":"jaaroverzicht!D36","v":0},0,{"$f":"jaaroverzicht!J36","v":0},null,false]
[null,{"$f":"jaaroverzicht!B37","v":0},{"$f":"jaaroverzicht!D37","v":0},0,{"$f":"jaaroverzicht!J37","v":0},null,false]
[null,{"$f":"jaaroverzicht!B38","v":0},{"$f":"jaaroverzicht!D38","v":0},0,{"$f":"jaaroverzicht!J38","v":0},null,false]
[null,{"$f":"jaaroverzicht!B39","v":0},{"$f":"jaaroverzicht!D39","v":0},0,{"$f":"jaaroverzicht!J39","v":0},null,false]
[null,{"$f":"jaaroverzicht!B40","v":0},{"$f":"jaaroverzicht!D40","v":0},0,{"$f":"jaaroverzicht!J40","v":0},null,false]
[null,{"$f":"jaaroverzicht!B41","v":0},{"$f":"jaaroverzicht!D41","v":0},0,{"$f":"jaaroverzicht!J41","v":0},null,false]
[null,{"$f":"jaaroverzicht!B42","v":0},{"$f":"jaaroverzicht!D42","v":0},0,{"$f":"jaaroverzicht!J42","v":0},null,false]
[null,{"$f":"jaaroverzicht!B43","v":0},{"$f":"jaaroverzicht!D43","v":0},0,{"$f":"jaaroverzicht!J43","v":0},null,false]
[null,{"$f":"jaaroverzicht!B44","v":0},{"$f":"jaaroverzicht!D44","v":0},0,{"$f":"jaaroverzicht!J44","v":0},null,false]
[null,{"$f":"jaaroverzicht!B45","v":0},{"$f":"jaaroverzicht!D45","v":0},0,{"$f":"jaaroverzicht!J45","v":0},null,false]
[null,"Nog tegoed",null,{"$f":"jaaroverzicht!J46","v":0},{"$f":"I252","v":0},null,false]
[null,"Nog te betalen",null,{"$f":"jaaroverzicht!J47","v":0},{"$f":"I271","v":0},null,false]
[null,null,null,null,null,null,false]
[null,null,null,null,null,null,false]
[null,null,null,null,null,null,false]
[null,{"$f":"CONCATENATE(jaaroverzicht!K3,\" , \",jaaroverzicht!K4,\"  t/m  \",jaaroverzicht!K5)","v":"Periode 7 , 18 juli  t/m  17 aug"},null,null,{"$f":"NOW()","v":"2017-04-24T19:23:03.950"},null,false,null,null,null,null,null,null,"                   vul het huidige saldo in van je rekening",null,null,null,{"$f":"NOW()","v":"2017-04-24T19:23:03.950"},null,{"$f":"NOW()","v":42849.80768460648}]
[null,{"$f":"jaaroverzicht!K5-R290+1","v":115.1923153935204},{"$f":"IF(B291>=2,\"dagen duurd deze periode nog\",IF(B291=1,\"dag duurd deze periode nog\",\"ga naar de volgende periode !!!\"))","v":"dagen duurd deze periode nog"},null,null,null,false]
[null,null,"      Er staat nu op de rekening : ",null,0,null,false,null,null,null,null,null,null,"             vink aan, wat is af of bijgeschreven"]
[null,"incasso","               Als alles is verekend :",null,{"$f":"E292+I300-I319","v":0},null,false,null,null,null,null,null,null,null,null,null,null,"Deze periode naar bureaublad in .pdf"]
[null,"datum",null,null,null,null,false,null,null,null,null,null,null,"klik op de desbetreffende icoon, voor de internet site"]
[null,{"$f":"jaaroverzicht!B8","v":0},{"$f":"jaaroverzicht!D8","v":0},{"$f":"IF(G295=TRUE,\"\",E295)","v":0},{"$f":"jaaroverzicht!K8","v":0},null,false]
[null,{"$f":"jaaroverzicht!B9","v":0},{"$f":"jaaroverzicht!D9","v":0},{"$f":"IF(G296=TRUE,\"\",E296)","v":0},{"$f":"jaaroverzicht!K9","v":0},null,false]
[null,{"$f":"jaaroverzicht!B10","v":0},{"$f":"jaaroverzicht!D10","v":0},0,{"$f":"jaaroverzicht!K10","v":0},null,false,null,"nog niet "]
[null,{"$f":"jaaroverzicht!B11","v":0},{"$f":"jaaroverzicht!D11","v":0},0,{"$f":"jaaroverzicht!K11","v":0},null,false,null,"ontvangen"]
[null,{"$f":"jaaroverzicht!B12","v":0},{"$f":"jaaroverzicht!D12","v":0},0,{"$f":"jaaroverzicht!K12","v":0},null,false,null,"totaal"]
[null,{"$f":"jaaroverzicht!B13","v":0},{"$f":"jaaroverzicht!D13","v":0},0,{"$f":"jaaroverzicht!K13","v":0},null,false,null,{"$f":"SUM(D295:D302)","v":0}]
[null,{"$f":"jaaroverzicht!B14","v":0},{"$f":"jaaroverzicht!D14","v":0},0,{"$f":"jaaroverzicht!K14","v":0},null,false]
[null,{"$f":"jaaroverzicht!B15","v":0},{"$f":"jaaroverzicht!D15","v":0},0,{"$f":"jaaroverzicht!K15","v":0},null,false]
[null,{"$f":"jaaroverzicht!B16","v":0},{"$f":"jaaroverzicht!D16","v":0},0,{"$f":"jaaroverzicht!K16","v":0},null,false]
[null,{"$f":"jaaroverzicht!B17","v":0},{"$f":"jaaroverzicht!D17","v":0},{"$f":"IF(G304=TRUE,\"\",E304)","v":0},{"$f":"jaaroverzicht!K17","v":0},null,false,null,null,null,null,null,null,"Jaaroverzicht alle inkomsten en uitgave`s"]
[null,{"$f":"jaaroverzicht!B18","v":0},{"$f":"jaaroverzicht!D18","v":0},0,{"$f":"jaaroverzicht!K18","v":0},null,false]
[null,{"$f":"jaaroverzicht!B19","v":0},{"$f":"jaaroverzicht!D19","v":0},0,{"$f":"jaaroverzicht!K19","v":0},null,false]
[null,{"$f":"jaaroverzicht!B20","v":0},{"$f":"jaaroverzicht!D20","v":0},0,{"$f":"jaaroverzicht!K20","v":0},null,false]
[null,{"$f":"jaaroverzicht!B21","v":0},{"$f":"jaaroverzicht!D21","v":0},0,{"$f":"jaaroverzicht!K21","v":0},null,false]
[null,{"$f":"jaaroverzicht!B22","v":0},{"$f":"jaaroverzicht!D22","v":0},0,{"$f":"jaaroverzicht!K22","v":0},null,false]
[null,{"$f":"jaaroverzicht!B23","v":0},{"$f":"jaaroverzicht!D23","v":0},0,{"$f":"jaaroverzicht!K23","v":0},null,false]
[null,{"$f":"jaaroverzicht!B24","v":0},{"$f":"jaaroverzicht!D24","v":0},0,{"$f":"jaaroverzicht!K24","v":0},null,false]
[null,{"$f":"jaaroverzicht!B25","v":0},{"$f":"jaaroverzicht!D25","v":0},0,{"$f":"jaaroverzicht!K25","v":0},null,false]
["..",{"$f":"jaaroverzicht!B26","v":0},{"$f":"jaaroverzicht!D26","v":0},0,{"$f":"jaaroverzicht!K26","v":0},null,false]
[null,{"$f":"jaaroverzicht!B27","v":0},{"$f":"jaaroverzicht!D27","v":0},0,{"$f":"jaaroverzicht!K27","v":0},null,false]
[null,{"$f":"jaaroverzicht!B28","v":0},{"$f":"jaaroverzicht!D28","v":0},0,{"$f":"jaaroverzicht!K28","v":0},null,false]
[null,{"$f":"jaaroverzicht!B29","v":0},{"$f":"jaaroverzicht!D29","v":0},0,{"$f":"jaaroverzicht!K29","v":0},null,false,null,"nog niet"]
[null,{"$f":"jaaroverzicht!B30","v":0},{"$f":"jaaroverzicht!D30","v":0},0,{"$f":"jaaroverzicht!K30","v":0},null,false,null,"betaald"]
[null,{"$f":"jaaroverzicht!B31","v":0},{"$f":"jaaroverzicht!D31","v":0},0,{"$f":"jaaroverzicht!K31","v":0},null,false,null,"totaal",null,null,null,null,"Eindsaldo - per maand",null,null,null,"Hier wordt het eindsaldo steeds meegenomen naar de volgende maand"]
[null,{"$f":"jaaroverzicht!B32","v":0},{"$f":"jaaroverzicht!D32","v":0},0,{"$f":"jaaroverzicht!K32","v":0},null,false,null,{"$f":"SUM(D303:D332)","v":0}]
[null,{"$f":"jaaroverzicht!B33","v":0},{"$f":"jaaroverzicht!D33","v":0},0,{"$f":"jaaroverzicht!K33","v":0},null,false]
[null,{"$f":"jaaroverzicht!B34","v":0},{"$f":"jaaroverzicht!D34","v":0},0,{"$f":"jaaroverzicht!K34","v":0},null,false]
[null,{"$f":"jaaroverzicht!B35","v":0},{"$f":"jaaroverzicht!D35","v":0},0,{"$f":"jaaroverzicht!K35","v":0},null,false]
[null,{"$f":"jaaroverzicht!B36","v":0},{"$f":"jaaroverzicht!D36","v":0},0,{"$f":"jaaroverzicht!K36","v":0},null,false]
[null,{"$f":"jaaroverzicht!B37","v":0},{"$f":"jaaroverzicht!D37","v":0},0,{"$f":"jaaroverzicht!K37","v":0},null,false]
[null,{"$f":"jaaroverzicht!B38","v":0},{"$f":"jaaroverzicht!D38","v":0},0,{"$f":"jaaroverzicht!K38","v":0},null,false]
[null,{"$f":"jaaroverzicht!B39","v":0},{"$f":"jaaroverzicht!D39","v":0},0,{"$f":"jaaroverzicht!K39","v":0},null,false]
[null,{"$f":"jaaroverzicht!B40","v":0},{"$f":"jaaroverzicht!D40","v":0},0,{"$f":"jaaroverzicht!K40","v":0},null,false]
[null,{"$f":"jaaroverzicht!B41","v":0},{"$f":"jaaroverzicht!D41","v":0},0,{"$f":"jaaroverzicht!K41","v":0},null,false]
[null,{"$f":"jaaroverzicht!B42","v":0},{"$f":"jaaroverzicht!D42","v":0},0,{"$f":"jaaroverzicht!K42","v":0},null,false]
[null,{"$f":"jaaroverzicht!B43","v":0},{"$f":"jaaroverzicht!D43","v":0},0,{"$f":"jaaroverzicht!K43","v":0},null,false]
[null,{"$f":"jaaroverzicht!B44","v":0},{"$f":"jaaroverzicht!D44","v":0},0,{"$f":"jaaroverzicht!K44","v":0},null,false]
[null,{"$f":"jaaroverzicht!B45","v":0},{"$f":"jaaroverzicht!D45","v":0},0,{"$f":"jaaroverzicht!K45","v":0},null,false]
[null,"Nog tegoed",null,{"$f":"jaaroverzicht!K46","v":0},{"$f":"I300","v":0},null,false]
[null,"Nog te betalen",null,{"$f":"jaaroverzicht!K47","v":0},{"$f":"I319","v":0},null,false]
[null,null,null,null,null,null,false]
[null,null,null,null,null,null,false]
[null,null,null,null,null,null,false]
[null,{"$f":"CONCATENATE(jaaroverzicht!L3,\" , \",jaaroverzicht!L4,\"  t/m  \",jaaroverzicht!L5)","v":"Periode 8 , 18 aug  t/m  17 sept"},null,null,{"$f":"NOW()","v":"2017-04-24T19:23:03.950"},null,false,null,null,null,null,null,null,"                   vul het huidige saldo in van je rekening",null,null,null,{"$f":"NOW()","v":"2017-04-24T19:23:03.950"},null,{"$f":"NOW()","v":42849.80768460648}]
[null,{"$f":"jaaroverzicht!L5-R338+1","v":146.1923153935204},{"$f":"IF(B339>=2,\"dagen duurd deze periode nog\",IF(B339=1,\"dag duurd deze periode nog\",\"ga naar de volgende periode !!!\"))","v":"dagen duurd deze periode nog"},null,null,null,false]
[null,null,"      Er staat nu op de rekening : ",null,0,null,false,null,null,null,null,null,null,"             vink aan, wat is af of bijgeschreven"]
[null,"incasso","               Als alles is verekend :",null,{"$f":"E340+I348-I367","v":0},null,false,null,null,null,null,null,null,null,null,null,null,"Deze periode naar bureaublad in .pdf"]
[null,"datum",null,null,null,null,false,null,null,null,null,null,null,"klik op de desbetreffende icoon, voor de internet site"]
[null,{"$f":"jaaroverzicht!B8","v":0},{"$f":"jaaroverzicht!D8","v":0},{"$f":"IF(G343=TRUE,\"\",E343)","v":0},{"$f":"jaaroverzicht!L8","v":0},null,false]
[null,{"$f":"jaaroverzicht!B9","v":0},{"$f":"jaaroverzicht!D9","v":0},{"$f":"IF(G344=TRUE,\"\",E344)","v":0},{"$f":"jaaroverzicht!L9","v":0},null,false]
[null,{"$f":"jaaroverzicht!B10","v":0},{"$f":"jaaroverzicht!D10","v":0},0,{"$f":"jaaroverzicht!L10","v":0},null,false,null,"nog niet "]
[null,{"$f":"jaaroverzicht!B11","v":0},{"$f":"jaaroverzicht!D11","v":0},0,{"$f":"jaaroverzicht!L11","v":0},null,false,null,"ontvangen"]
[null,{"$f":"jaaroverzicht!B12","v":0},{"$f":"jaaroverzicht!D12","v":0},0,{"$f":"jaaroverzicht!L12","v":0},null,false,null,"totaal"]
[null,{"$f":"jaaroverzicht!B13","v":0},{"$f":"jaaroverzicht!D13","v":0},0,{"$f":"jaaroverzicht!L13","v":0},null,false,null,{"$f":"SUM(D343:D350)","v":0}]
[null,{"$f":"jaaroverzicht!B14","v":0},{"$f":"jaaroverzicht!D14","v":0},{"$f":"IF(G349=TRUE,\"\",E349)","v":0},{"$f":"jaaroverzicht!L14","v":0},null,false]
[null,{"$f":"jaaroverzicht!B15","v":0},{"$f":"jaaroverzicht!D15","v":0},0,{"$f":"jaaroverzicht!L15","v":0},null,false]
[null,{"$f":"jaaroverzicht!B16","v":0},{"$f":"jaaroverzicht!D16","v":0},0,{"$f":"jaaroverzicht!L16","v":0},null,false]
[null,{"$f":"jaaroverzicht!B17","v":0},{"$f":"jaaroverzicht!D17","v":0},{"$f":"IF(G352=TRUE,\"\",E352)","v":0},{"$f":"jaaroverzicht!L17","v":0},null,false,null,null,null,null,null,null,"Jaaroverzicht alle inkomsten en uitgave`s"]
[null,{"$f":"jaaroverzicht!B18","v":0},{"$f":"jaaroverzicht!D18","v":0},0,{"$f":"jaaroverzicht!L18","v":0},null,false]
[null,{"$f":"jaaroverzicht!B19","v":0},{"$f":"jaaroverzicht!D19","v":0},0,{"$f":"jaaroverzicht!L19","v":0},null,false]
[null,{"$f":"jaaroverzicht!B20","v":0},{"$f":"jaaroverzicht!D20","v":0},0,{"$f":"jaaroverzicht!L20","v":0},null,false]
[null,{"$f":"jaaroverzicht!B21","v":0},{"$f":"jaaroverzicht!D21","v":0},0,{"$f":"jaaroverzicht!L21","v":0},null,false]
[null,{"$f":"jaaroverzicht!B22","v":0},{"$f":"jaaroverzicht!D22","v":0},0,{"$f":"jaaroverzicht!L22","v":0},null,false]
[null,{"$f":"jaaroverzicht!B23","v":0},{"$f":"jaaroverzicht!D23","v":0},0,{"$f":"jaaroverzicht!L23","v":0},null,false]
[null,{"$f":"jaaroverzicht!B24","v":0},{"$f":"jaaroverzicht!D24","v":0},0,{"$f":"jaaroverzicht!L24","v":0},null,false]
[null,{"$f":"jaaroverzicht!B25","v":0},{"$f":"jaaroverzicht!D25","v":0},0,{"$f":"jaaroverzicht!L25","v":0},null,false]
["..",{"$f":"jaaroverzicht!B26","v":0},{"$f":"jaaroverzicht!D26","v":0},0,{"$f":"jaaroverzicht!L26","v":0},null,false]
[null,{"$f":"jaaroverzicht!B27","v":0},{"$f":"jaaroverzicht!D27","v":0},0,{"$f":"jaaroverzicht!L27","v":0},null,false]
[null,{"$f":"jaaroverzicht!B28","v":0},{"$f":"jaaroverzicht!D28","v":0},0,{"$f":"jaaroverzicht!L28","v":0},null,false]
[null,{"$f":"jaaroverzicht!B29","v":0},{"$f":"jaaroverzicht!D29","v":0},0,{"$f":"jaaroverzicht!L29","v":0},null,false,null,"nog niet"]
[null,{"$f":"jaaroverzicht!B30","v":0},{"$f":"jaaroverzicht!D30","v":0},0,{"$f":"jaaroverzicht!L30","v":0},null,false,null,"betaald"]
[null,{"$f":"jaaroverzicht!B31","v":0},{"$f":"jaaroverzicht!D31","v":0},0,{"$f":"jaaroverzicht!L31","v":0},null,false,null,"totaal",null,null,null,null,"Eindsaldo - per maand",null,null,null,"Hier wordt het eindsaldo steeds meegenomen naar de volgende maand"]
[null,{"$f":"jaaroverzicht!B32","v":0},{"$f":"jaaroverzicht!D32","v":0},0,{"$f":"jaaroverzicht!L32","v":0},null,false,null,{"$f":"SUM(D351:D380)","v":0}]
[null,{"$f":"jaaroverzicht!B33","v":0},{"$f":"jaaroverzicht!D33","v":0},0,{"$f":"jaaroverzicht!L33","v":0},null,false]
[null,{"$f":"jaaroverzicht!B34","v":0},{"$f":"jaaroverzicht!D34","v":0},0,{"$f":"jaaroverzicht!L34","v":0},null,false]
[null,{"$f":"jaaroverzicht!B35","v":0},{"$f":"jaaroverzicht!D35","v":0},0,{"$f":"jaaroverzicht!L35","v":0},null,false]
[null,{"$f":"jaaroverzicht!B36","v":0},{"$f":"jaaroverzicht!D36","v":0},0,{"$f":"jaaroverzicht!L36","v":0},null,false]
[null,{"$f":"jaaroverzicht!B37","v":0},{"$f":"jaaroverzicht!D37","v":0},0,{"$f":"jaaroverzicht!L37","v":0},null,false]
[null,{"$f":"jaaroverzicht!B38","v":0},{"$f":"jaaroverzicht!D38","v":0},0,{"$f":"jaaroverzicht!L38","v":0},null,false]
[null,{"$f":"jaaroverzicht!B39","v":0},{"$f":"jaaroverzicht!D39","v":0},0,{"$f":"jaaroverzicht!L39","v":0},null,false]
[null,{"$f":"jaaroverzicht!B40","v":0},{"$f":"jaaroverzicht!D40","v":0},0,{"$f":"jaaroverzicht!L40","v":0},null,false]
[null,{"$f":"jaaroverzicht!B41","v":0},{"$f":"jaaroverzicht!D41","v":0},0,{"$f":"jaaroverzicht!L41","v":0},null,false]
[null,{"$f":"jaaroverzicht!B42","v":0},{"$f":"jaaroverzicht!D42","v":0},0,{"$f":"jaaroverzicht!L42","v":0},null,false]
[null,{"$f":"jaaroverzicht!B43","v":0},{"$f":"jaaroverzicht!D43","v":0},0,{"$f":"jaaroverzicht!L43","v":0},null,false]
[null,{"$f":"jaaroverzicht!B44","v":0},{"$f":"jaaroverzicht!D44","v":0},0,{"$f":"jaaroverzicht!L44","v":0},null,false]
[null,{"$f":"jaaroverzicht!B45","v":0},{"$f":"jaaroverzicht!D45","v":0},0,{"$f":"jaaroverzicht!L45","v":0},null,false]
[null,"Nog tegoed",null,{"$f":"jaaroverzicht!L46","v":0},{"$f":"I348","v":0},null,false]
[null,"Nog te betalen",null,{"$f":"jaaroverzicht!L47","v":0},{"$f":"I367","v":0},null,false]
[null,null,null,null,null,null,false]
[null,null,null,null,null,null,false]
[null,null,null,null,null,null,false]
[null,{"$f":"CONCATENATE(jaaroverzicht!M3,\" , \",jaaroverzicht!M4,\"  t/m  \",jaaroverzicht!M5)","v":"Periode 9 , 18 sept  t/m  17 okt"},null,null,{"$f":"NOW()","v":"2017-04-24T19:23:03.950"},null,false,null,null,null,null,null,null,"                   vul het huidige saldo in van je rekening",null,null,null,{"$f":"NOW()","v":"2017-04-24T19:23:03.950"},null,{"$f":"NOW()","v":42849.80768460648}]
[null,{"$f":"jaaroverzicht!M5-R386+1","v":176.1923153935204},{"$f":"IF(B387>=2,\"dagen duurd deze periode nog\",IF(B387=1,\"dag duurd deze periode nog\",\"ga naar de volgende periode !!!\"))","v":"dagen duurd deze periode nog"},null,null,null,false]
[null,null,"      Er staat nu op de rekening : ",null,0,null,false,null,null,null,null,null,null,"             vink aan, wat is af of bijgeschreven"]
[null,"incasso","               Als alles is verekend :",null,{"$f":"E388+I396-I415","v":0},null,false,null,null,null,null,null,null,null,null,null,null,"Deze periode naar bureaublad in .pdf"]
[null,"datum",null,null,null,null,false,null,null,null,null,null,null,"klik op de desbetreffende icoon, voor de internet site"]
[null,{"$f":"jaaroverzicht!B8","v":0},{"$f":"jaaroverzicht!D8","v":0},{"$f":"IF(G391=TRUE,\"\",E391)","v":0},{"$f":"jaaroverzicht!M8","v":0},null,false]
[null,{"$f":"jaaroverzicht!B9","v":0},{"$f":"jaaroverzicht!D9","v":0},{"$f":"IF(G392=TRUE,\"\",E392)","v":0},{"$f":"jaaroverzicht!M9","v":0},null,false]
[null,{"$f":"jaaroverzicht!B10","v":0},{"$f":"jaaroverzicht!D10","v":0},0,{"$f":"jaaroverzicht!M10","v":0},null,false,null,"nog niet "]
[null,{"$f":"jaaroverzicht!B11","v":0},{"$f":"jaaroverzicht!D11","v":0},0,{"$f":"jaaroverzicht!M11","v":0},null,false,null,"ontvangen"]
[null,{"$f":"jaaroverzicht!B12","v":0},{"$f":"jaaroverzicht!D12","v":0},0,{"$f":"jaaroverzicht!M12","v":0},null,false,null,"totaal"]
[null,{"$f":"jaaroverzicht!B13","v":0},{"$f":"jaaroverzicht!D13","v":0},0,{"$f":"jaaroverzicht!M13","v":0},null,false,null,{"$f":"SUM(D391:D398)","v":0}]
[null,{"$f":"jaaroverzicht!B14","v":0},{"$f":"jaaroverzicht!D14","v":0},0,{"$f":"jaaroverzicht!M14","v":0},null,false]
[null,{"$f":"jaaroverzicht!B15","v":0},{"$f":"jaaroverzicht!D15","v":0},0,{"$f":"jaaroverzicht!M15","v":0},null,false]
[null,{"$f":"jaaroverzicht!B16","v":0},{"$f":"jaaroverzicht!D16","v":0},0,{"$f":"jaaroverzicht!M16","v":0},null,false,null,null,null,null,null,null,null,0]
[null,{"$f":"jaaroverzicht!B17","v":0},{"$f":"jaaroverzicht!D17","v":0},{"$f":"IF(G400=TRUE,\"\",E400)","v":0},{"$f":"jaaroverzicht!M17","v":0},null,false,null,null,null,null,null,null,"Jaaroverzicht alle inkomsten en uitgave`s"]
[null,{"$f":"jaaroverzicht!B18","v":0},{"$f":"jaaroverzicht!D18","v":0},0,{"$f":"jaaroverzicht!M18","v":0},null,false]
[null,{"$f":"jaaroverzicht!B19","v":0},{"$f":"jaaroverzicht!D19","v":0},0,{"$f":"jaaroverzicht!M19","v":0},null,false]
[null,{"$f":"jaaroverzicht!B20","v":0},{"$f":"jaaroverzicht!D20","v":0},0,{"$f":"jaaroverzicht!M20","v":0},null,false]
[null,{"$f":"jaaroverzicht!B21","v":0},{"$f":"jaaroverzicht!D21","v":0},0,{"$f":"jaaroverzicht!M21","v":0},null,false]
[null,{"$f":"jaaroverzicht!B22","v":0},{"$f":"jaaroverzicht!D22","v":0},0,{"$f":"jaaroverzicht!M22","v":0},null,false]
[null,{"$f":"jaaroverzicht!B23","v":0},{"$f":"jaaroverzicht!D23","v":0},0,{"$f":"jaaroverzicht!M23","v":0},null,false]
[null,{"$f":"jaaroverzicht!B24","v":0},{"$f":"jaaroverzicht!D24","v":0},0,{"$f":"jaaroverzicht!M24","v":0},null,false]
[null,{"$f":"jaaroverzicht!B25","v":0},{"$f":"jaaroverzicht!D25","v":0},0,{"$f":"jaaroverzicht!M25","v":0},null,false]
["..",{"$f":"jaaroverzicht!B26","v":0},{"$f":"jaaroverzicht!D26","v":0},0,{"$f":"jaaroverzicht!M26","v":0},null,false]
[null,{"$f":"jaaroverzicht!B27","v":0},{"$f":"jaaroverzicht!D27","v":0},0,{"$f":"jaaroverzicht!M27","v":0},null,false]
[null,{"$f":"jaaroverzicht!B28","v":0},{"$f":"jaaroverzicht!D28","v":0},0,{"$f":"jaaroverzicht!M28","v":0},null,false]
[null,{"$f":"jaaroverzicht!B29","v":0},{"$f":"jaaroverzicht!D29","v":0},0,{"$f":"jaaroverzicht!M29","v":0},null,false,null,"nog niet"]
[null,{"$f":"jaaroverzicht!B30","v":0},{"$f":"jaaroverzicht!D30","v":0},0,{"$f":"jaaroverzicht!M30","v":0},null,false,null,"betaald"]
[null,{"$f":"jaaroverzicht!B31","v":0},{"$f":"jaaroverzicht!D31","v":0},0,{"$f":"jaaroverzicht!M31","v":0},null,false,null,"totaal",null,null,null,null,"Eindsaldo - per maand",null,null,null,"Hier wordt het eindsaldo steeds meegenomen naar de volgende maand"]
[null,{"$f":"jaaroverzicht!B32","v":0},{"$f":"jaaroverzicht!D32","v":0},0,{"$f":"jaaroverzicht!M32","v":0},null,false,null,{"$f":"SUM(D399:D428)","v":0}]
[null,{"$f":"jaaroverzicht!B33","v":0},{"$f":"jaaroverzicht!D33","v":0},0,{"$f":"jaaroverzicht!M33","v":0},null,false]
[null,{"$f":"jaaroverzicht!B34","v":0},{"$f":"jaaroverzicht!D34","v":0},0,{"$f":"jaaroverzicht!M34","v":0},null,false]
[null,{"$f":"jaaroverzicht!B35","v":0},{"$f":"jaaroverzicht!D35","v":0},0,{"$f":"jaaroverzicht!M35","v":0},null,false]
[null,{"$f":"jaaroverzicht!B36","v":0},{"$f":"jaaroverzicht!D36","v":0},0,{"$f":"jaaroverzicht!M36","v":0},null,false]
[null,{"$f":"jaaroverzicht!B37","v":0},{"$f":"jaaroverzicht!D37","v":0},0,{"$f":"jaaroverzicht!M37","v":0},null,false]
[null,{"$f":"jaaroverzicht!B38","v":0},{"$f":"jaaroverzicht!D38","v":0},0,{"$f":"jaaroverzicht!M38","v":0},null,false]
[null,{"$f":"jaaroverzicht!B39","v":0},{"$f":"jaaroverzicht!D39","v":0},0,{"$f":"jaaroverzicht!M39","v":0},null,false]
[null,{"$f":"jaaroverzicht!B40","v":0},{"$f":"jaaroverzicht!D40","v":0},0,{"$f":"jaaroverzicht!M40","v":0},null,false]
[null,{"$f":"jaaroverzicht!B41","v":0},{"$f":"jaaroverzicht!D41","v":0},0,{"$f":"jaaroverzicht!M41","v":0},null,false]
[null,{"$f":"jaaroverzicht!B42","v":0},{"$f":"jaaroverzicht!D42","v":0},0,{"$f":"jaaroverzicht!M42","v":0},null,false]
[null,{"$f":"jaaroverzicht!B43","v":0},{"$f":"jaaroverzicht!D43","v":0},0,{"$f":"jaaroverzicht!M43","v":0},null,false]
[null,{"$f":"jaaroverzicht!B44","v":0},{"$f":"jaaroverzicht!D44","v":0},0,{"$f":"jaaroverzicht!M44","v":0},null,false]
[null,{"$f":"jaaroverzicht!B45","v":0},{"$f":"jaaroverzicht!D45","v":0},0,{"$f":"jaaroverzicht!M45","v":0},null,false]
[null,"Nog tegoed",null,{"$f":"jaaroverzicht!M46","v":0},{"$f":"I396","v":0},null,false]
[null,"Nog te betalen",null,{"$f":"jaaroverzicht!M47","v":0},{"$f":"I415","v":0},null,false]
[null,null,null,null,null,null,false]
[null,null,null,null,null,null,false]
[null,null,null,null,null,null,false]
[null,{"$f":"CONCATENATE(jaaroverzicht!N3,\" , \",jaaroverzicht!N4,\"  t/m  \",jaaroverzicht!N5)","v":"Periode 10 , 18 okt  t/m  16 nov"},null,null,{"$f":"NOW()","v":"2017-04-24T19:23:03.950"},null,false,null,null,null,null,null,null,"                   vul het huidige saldo in van je rekening",null,null,null,{"$f":"NOW()","v":"2017-04-24T19:23:03.950"},null,{"$f":"NOW()","v":42849.80768460648}]
[null,{"$f":"jaaroverzicht!N5-R434+1","v":206.1923153935204},{"$f":"IF(B435>=2,\"dagen duurd deze periode nog\",IF(B435=1,\"dag duurd deze periode nog\",\"ga naar de volgende periode !!!\"))","v":"dagen duurd deze periode nog"},null,null,null,false]
[null,null,"      Er staat nu op de rekening : ",null,0,null,false,null,null,null,null,null,null,"             vink aan, wat is af of bijgeschreven"]
[null,"incasso","               Als alles is verekend :",null,{"$f":"E436+I444-I463","v":0},null,false,null,null,null,null,null,null,null,null,null,null,"Deze periode naar bureaublad in .pdf"]
[null,"datum",null,null,null,null,false,null,null,null,null,null,null,"klik op de desbetreffende icoon, voor de internet site"]
[null,{"$f":"jaaroverzicht!B8","v":0},{"$f":"jaaroverzicht!D8","v":0},{"$f":"IF(G439=TRUE,\"\",E439)","v":0},{"$f":"jaaroverzicht!N8","v":0},null,false]
[null,{"$f":"jaaroverzicht!B9","v":0},{"$f":"jaaroverzicht!D9","v":0},{"$f":"IF(G440=TRUE,\"\",E440)","v":0},{"$f":"jaaroverzicht!N9","v":0},null,false]
[null,{"$f":"jaaroverzicht!B10","v":0},{"$f":"jaaroverzicht!D10","v":0},0,{"$f":"jaaroverzicht!N10","v":0},null,false,null,"nog niet "]
[null,{"$f":"jaaroverzicht!B11","v":0},{"$f":"jaaroverzicht!D11","v":0},0,{"$f":"jaaroverzicht!N11","v":0},null,false,null,"ontvangen"]
[null,{"$f":"jaaroverzicht!B12","v":0},{"$f":"jaaroverzicht!D12","v":0},0,{"$f":"jaaroverzicht!N12","v":0},null,false,null,"totaal"]
[null,{"$f":"jaaroverzicht!B13","v":0},{"$f":"jaaroverzicht!D13","v":0},0,{"$f":"jaaroverzicht!N13","v":0},null,false,null,{"$f":"SUM(D439:D446)","v":0}]
[null,{"$f":"jaaroverzicht!B14","v":0},{"$f":"jaaroverzicht!D14","v":0},0,{"$f":"jaaroverzicht!N14","v":0},null,false]
[null,{"$f":"jaaroverzicht!B15","v":0},{"$f":"jaaroverzicht!D15","v":0},0,{"$f":"jaaroverzicht!N15","v":0},null,false]
[null,{"$f":"jaaroverzicht!B16","v":0},{"$f":"jaaroverzicht!D16","v":0},0,{"$f":"jaaroverzicht!N16","v":0},null,false]
[null,{"$f":"jaaroverzicht!B17","v":0},{"$f":"jaaroverzicht!D17","v":0},{"$f":"IF(G448=TRUE,\"\",E448)","v":0},{"$f":"jaaroverzicht!N17","v":0},null,false,null,null,null,null,null,null,"Jaaroverzicht alle inkomsten en uitgave`s"]
[null,{"$f":"jaaroverzicht!B18","v":0},{"$f":"jaaroverzicht!D18","v":0},0,{"$f":"jaaroverzicht!N18","v":0},null,false]
[null,{"$f":"jaaroverzicht!B19","v":0},{"$f":"jaaroverzicht!D19","v":0},0,{"$f":"jaaroverzicht!N19","v":0},null,false]
[null,{"$f":"jaaroverzicht!B20","v":0},{"$f":"jaaroverzicht!D20","v":0},0,{"$f":"jaaroverzicht!N20","v":0},null,false]
[null,{"$f":"jaaroverzicht!B21","v":0},{"$f":"jaaroverzicht!D21","v":0},0,{"$f":"jaaroverzicht!N21","v":0},null,false]
[null,{"$f":"jaaroverzicht!B22","v":0},{"$f":"jaaroverzicht!D22","v":0},0,{"$f":"jaaroverzicht!N22","v":0},null,false]
[null,{"$f":"jaaroverzicht!B23","v":0},{"$f":"jaaroverzicht!D23","v":0},0,{"$f":"jaaroverzicht!N23","v":0},null,false]
[null,{"$f":"jaaroverzicht!B24","v":0},{"$f":"jaaroverzicht!D24","v":0},0,{"$f":"jaaroverzicht!N24","v":0},null,false]
[null,{"$f":"jaaroverzicht!B25","v":0},{"$f":"jaaroverzicht!D25","v":0},0,{"$f":"jaaroverzicht!N25","v":0},null,false]
["..",{"$f":"jaaroverzicht!B26","v":0},{"$f":"jaaroverzicht!D26","v":0},0,{"$f":"jaaroverzicht!N26","v":0},null,false]
[null,{"$f":"jaaroverzicht!B27","v":0},{"$f":"jaaroverzicht!D27","v":0},0,{"$f":"jaaroverzicht!N27","v":0},null,false]
[null,{"$f":"jaaroverzicht!B28","v":0},{"$f":"jaaroverzicht!D28","v":0},0,{"$f":"jaaroverzicht!N28","v":0},null,false]
[null,{"$f":"jaaroverzicht!B29","v":0},{"$f":"jaaroverzicht!D29","v":0},0,{"$f":"jaaroverzicht!N29","v":0},null,false,null,"nog niet"]
[null,{"$f":"jaaroverzicht!B30","v":0},{"$f":"jaaroverzicht!D30","v":0},0,{"$f":"jaaroverzicht!N30","v":0},null,false,null,"betaald"]
[null,{"$f":"jaaroverzicht!B31","v":0},{"$f":"jaaroverzicht!D31","v":0},0,{"$f":"jaaroverzicht!N31","v":0},null,false,null,"totaal",null,null,null,null,"Eindsaldo - per maand",null,null,null,"Hier wordt het eindsaldo steeds meegenomen naar de volgende maand"]
[null,{"$f":"jaaroverzicht!B32","v":0},{"$f":"jaaroverzicht!D32","v":0},0,{"$f":"jaaroverzicht!N32","v":0},null,false,null,{"$f":"SUM(D447:D476)","v":0}]
[null,{"$f":"jaaroverzicht!B33","v":0},{"$f":"jaaroverzicht!D33","v":0},0,{"$f":"jaaroverzicht!N33","v":0},null,false]
[null,{"$f":"jaaroverzicht!B34","v":0},{"$f":"jaaroverzicht!D34","v":0},0,{"$f":"jaaroverzicht!N34","v":0},null,false]
[null,{"$f":"jaaroverzicht!B35","v":0},{"$f":"jaaroverzicht!D35","v":0},0,{"$f":"jaaroverzicht!N35","v":0},null,false]
[null,{"$f":"jaaroverzicht!B36","v":0},{"$f":"jaaroverzicht!D36","v":0},0,{"$f":"jaaroverzicht!N36","v":0},null,false]
[null,{"$f":"jaaroverzicht!B37","v":0},{"$f":"jaaroverzicht!D37","v":0},0,{"$f":"jaaroverzicht!N37","v":0},null,false]
[null,{"$f":"jaaroverzicht!B38","v":0},{"$f":"jaaroverzicht!D38","v":0},0,{"$f":"jaaroverzicht!N38","v":0},null,false]
[null,{"$f":"jaaroverzicht!B39","v":0},{"$f":"jaaroverzicht!D39","v":0},0,{"$f":"jaaroverzicht!N39","v":0},null,false]
[null,{"$f":"jaaroverzicht!B40","v":0},{"$f":"jaaroverzicht!D40","v":0},0,{"$f":"jaaroverzicht!N40","v":0},null,false]
[null,{"$f":"jaaroverzicht!B41","v":0},{"$f":"jaaroverzicht!D41","v":0},0,{"$f":"jaaroverzicht!N41","v":0},null,false]
[null,{"$f":"jaaroverzicht!B42","v":0},{"$f":"jaaroverzicht!D42","v":0},0,{"$f":"jaaroverzicht!N42","v":0},null,false]
[null,{"$f":"jaaroverzicht!B43","v":0},{"$f":"jaaroverzicht!D43","v":0},0,{"$f":"jaaroverzicht!N43","v":0},null,false]
[null,{"$f":"jaaroverzicht!B44","v":0},{"$f":"jaaroverzicht!D44","v":0},0,{"$f":"jaaroverzicht!N44","v":0},null,false]
[null,{"$f":"jaaroverzicht!B45","v":0},{"$f":"jaaroverzicht!D45","v":0},0,{"$f":"jaaroverzicht!N45","v":0},null,false]
[null,"Nog tegoed",null,{"$f":"jaaroverzicht!N46","v":0},{"$f":"I444","v":0},null,false]
[null,"Nog te betalen",null,{"$f":"jaaroverzicht!N47","v":0},{"$f":"I463","v":0},null,false]
[null,null,null,null,null,null,false]
[null,null,null,null,null,null,false]
[null,null,null,null,null,null,false]
[null,{"$f":"CONCATENATE(jaaroverzicht!O3,\" , \",jaaroverzicht!O4,\"  t/m  \",jaaroverzicht!O5)","v":"Periode 11 , 17 nov  t/m  17 dec"},null,null,{"$f":"NOW()","v":"2017-04-24T19:23:03.950"},null,false,null,null,null,null,null,null,"                   vul het huidige saldo in van je rekening",null,null,null,{"$f":"NOW()","v":"2017-04-24T19:23:03.950"},null,{"$f":"NOW()","v":42849.80768460648}]
[null,{"$f":"jaaroverzicht!O5-R482+1","v":237.1923153935204},{"$f":"IF(B483>=2,\"dagen duurd deze periode nog\",IF(B483=1,\"dag duurd deze periode nog\",\"ga naar de volgende periode !!!\"))","v":"dagen duurd deze periode nog"},null,null,null,false]
[null,null,"      Er staat nu op de rekening : ",null,0,null,false,null,null,null,null,null,null,"             vink aan, wat is af of bijgeschreven"]
[null,"incasso","               Als alles is verekend :",null,{"$f":"E484+I492-I511","v":0},null,false,null,null,null,null,null,null,null,null,null,null,"Deze periode naar bureaublad in .pdf"]
[null,"datum",null,null,null,null,false,null,null,null,null,null,null,"klik op de desbetreffende icoon, voor de internet site"]
[null,{"$f":"jaaroverzicht!B8","v":0},{"$f":"jaaroverzicht!D8","v":0},{"$f":"IF(G487=TRUE,\"\",E487)","v":0},{"$f":"jaaroverzicht!O8","v":0},null,false]
[null,{"$f":"jaaroverzicht!B9","v":0},{"$f":"jaaroverzicht!D9","v":0},{"$f":"IF(G488=TRUE,\"\",E488)","v":0},{"$f":"jaaroverzicht!O9","v":0},null,false]
[null,{"$f":"jaaroverzicht!B10","v":0},{"$f":"jaaroverzicht!D10","v":0},0,{"$f":"jaaroverzicht!O10","v":0},null,false,null,"nog niet "]
[null,{"$f":"jaaroverzicht!B11","v":0},{"$f":"jaaroverzicht!D11","v":0},0,{"$f":"jaaroverzicht!O11","v":0},null,false,null,"ontvangen"]
[null,{"$f":"jaaroverzicht!B12","v":0},{"$f":"jaaroverzicht!D12","v":0},0,{"$f":"jaaroverzicht!O12","v":0},null,false,null,"totaal"]
[null,{"$f":"jaaroverzicht!B13","v":0},{"$f":"jaaroverzicht!D13","v":0},0,{"$f":"jaaroverzicht!O13","v":0},null,false,null,{"$f":"SUM(D487:D494)","v":0}]
[null,{"$f":"jaaroverzicht!B14","v":0},{"$f":"jaaroverzicht!D14","v":0},0,{"$f":"jaaroverzicht!O14","v":0},null,false]
[null,{"$f":"jaaroverzicht!B15","v":0},{"$f":"jaaroverzicht!D15","v":0},0,{"$f":"jaaroverzicht!O15","v":0},null,false]
[null,{"$f":"jaaroverzicht!B16","v":0},{"$f":"jaaroverzicht!D16","v":0},0,{"$f":"jaaroverzicht!O16","v":0},null,false]
[null,{"$f":"jaaroverzicht!B17","v":0},{"$f":"jaaroverzicht!D17","v":0},{"$f":"IF(G496=TRUE,\"\",E496)","v":0},{"$f":"jaaroverzicht!O17","v":0},null,false,null,null,null,null,null,null,"Jaaroverzicht alle inkomsten en uitgave`s"]
[null,{"$f":"jaaroverzicht!B18","v":0},{"$f":"jaaroverzicht!D18","v":0},0,{"$f":"jaaroverzicht!O18","v":0},null,false]
[null,{"$f":"jaaroverzicht!B19","v":0},{"$f":"jaaroverzicht!D19","v":0},0,{"$f":"jaaroverzicht!O19","v":0},null,false]
[null,{"$f":"jaaroverzicht!B20","v":0},{"$f":"jaaroverzicht!D20","v":0},0,{"$f":"jaaroverzicht!O20","v":0},null,false]
[null,{"$f":"jaaroverzicht!B21","v":0},{"$f":"jaaroverzicht!D21","v":0},0,{"$f":"jaaroverzicht!O21","v":0},null,false]
[null,{"$f":"jaaroverzicht!B22","v":0},{"$f":"jaaroverzicht!D22","v":0},0,{"$f":"jaaroverzicht!O22","v":0},null,false]
[null,{"$f":"jaaroverzicht!B23","v":0},{"$f":"jaaroverzicht!D23","v":0},0,{"$f":"jaaroverzicht!O23","v":0},null,false]
[null,{"$f":"jaaroverzicht!B24","v":0},{"$f":"jaaroverzicht!D24","v":0},0,{"$f":"jaaroverzicht!O24","v":0},null,false]
[null,{"$f":"jaaroverzicht!B25","v":0},{"$f":"jaaroverzicht!D25","v":0},0,{"$f":"jaaroverzicht!O25","v":0},null,false]
["..",{"$f":"jaaroverzicht!B26","v":0},{"$f":"jaaroverzicht!D26","v":0},0,{"$f":"jaaroverzicht!O26","v":0},null,false]
[null,{"$f":"jaaroverzicht!B27","v":0},{"$f":"jaaroverzicht!D27","v":0},0,{"$f":"jaaroverzicht!O27","v":0},null,false]
[null,{"$f":"jaaroverzicht!B28","v":0},{"$f":"jaaroverzicht!D28","v":0},0,{"$f":"jaaroverzicht!O28","v":0},null,false]
[null,{"$f":"jaaroverzicht!B29","v":0},{"$f":"jaaroverzicht!D29","v":0},0,{"$f":"jaaroverzicht!O29","v":0},null,false,null,"nog niet"]
[null,{"$f":"jaaroverzicht!B30","v":0},{"$f":"jaaroverzicht!D30","v":0},0,{"$f":"jaaroverzicht!O30","v":0},null,false,null,"betaald"]
[null,{"$f":"jaaroverzicht!B31","v":0},{"$f":"jaaroverzicht!D31","v":0},0,{"$f":"jaaroverzicht!O31","v":0},null,false,null,"totaal",null,null,null,null,"Eindsaldo - per maand",null,null,null,"Hier wordt het eindsaldo steeds meegenomen naar de volgende maand"]
[null,{"$f":"jaaroverzicht!B32","v":0},{"$f":"jaaroverzicht!D32","v":0},0,{"$f":"jaaroverzicht!O32","v":0},null,false,null,{"$f":"SUM(D495:D524)","v":0}]
[null,{"$f":"jaaroverzicht!B33","v":0},{"$f":"jaaroverzicht!D33","v":0},0,{"$f":"jaaroverzicht!O33","v":0},null,false]
[null,{"$f":"jaaroverzicht!B34","v":0},{"$f":"jaaroverzicht!D34","v":0},0,{"$f":"jaaroverzicht!O34","v":0},null,false]
[null,{"$f":"jaaroverzicht!B35","v":0},{"$f":"jaaroverzicht!D35","v":0},0,{"$f":"jaaroverzicht!O35","v":0},null,false]
[null,{"$f":"jaaroverzicht!B36","v":0},{"$f":"jaaroverzicht!D36","v":0},0,{"$f":"jaaroverzicht!O36","v":0},null,false]
[null,{"$f":"jaaroverzicht!B37","v":0},{"$f":"jaaroverzicht!D37","v":0},0,{"$f":"jaaroverzicht!O37","v":0},null,false]
[null,{"$f":"jaaroverzicht!B38","v":0},{"$f":"jaaroverzicht!D38","v":0},0,{"$f":"jaaroverzicht!O38","v":0},null,false]
[null,{"$f":"jaaroverzicht!B39","v":0},{"$f":"jaaroverzicht!D39","v":0},0,{"$f":"jaaroverzicht!O39","v":0},null,false]
[null,{"$f":"jaaroverzicht!B40","v":0},{"$f":"jaaroverzicht!D40","v":0},0,{"$f":"jaaroverzicht!O40","v":0},null,false]
[null,{"$f":"jaaroverzicht!B41","v":0},{"$f":"jaaroverzicht!D41","v":0},0,{"$f":"jaaroverzicht!O41","v":0},null,false]
[null,{"$f":"jaaroverzicht!B42","v":0},{"$f":"jaaroverzicht!D42","v":0},0,{"$f":"jaaroverzicht!O42","v":0},null,false]
[null,{"$f":"jaaroverzicht!B43","v":0},{"$f":"jaaroverzicht!D43","v":0},0,{"$f":"jaaroverzicht!O43","v":0},null,false]
[null,{"$f":"jaaroverzicht!B44","v":0},{"$f":"jaaroverzicht!D44","v":0},0,{"$f":"jaaroverzicht!O44","v":0},null,false]
[null,{"$f":"jaaroverzicht!B45","v":0},{"$f":"jaaroverzicht!D45","v":0},0,{"$f":"jaaroverzicht!O45","v":0},null,false]
[null,"Nog tegoed",null,{"$f":"jaaroverzicht!O46","v":0},{"$f":"I492","v":0},null,false]
[null,"Nog te betalen",null,{"$f":"jaaroverzicht!O47","v":0},{"$f":"I511","v":0},null,false]
[null,null,null,null,null,null,false]
[null,null,null,null,null,null,false]
[null,null,null,null,null,null,false]
[null,{"$f":"CONCATENATE(jaaroverzicht!P3,\" , \",jaaroverzicht!P4,\"  t/m  \",jaaroverzicht!P5)","v":"Periode 12 , 18 dec  t/m  17 jan 2018"},null,null,{"$f":"NOW()","v":"2017-04-24T19:23:03.950"},null,false,null,null,null,null,null,null,"                   vul het huidige saldo in van je rekening",null,null,null,{"$f":"NOW()","v":"2017-04-24T19:23:03.950"},null,{"$f":"NOW()","v":42849.80768460648}]
[null,{"$f":"jaaroverzicht!P5-R530+1","v":268.1923153935204},{"$f":"IF(B531>=2,\"dagen duurd deze periode nog\",IF(B531=1,\"dag duurd deze periode nog\",\"ga naar de volgende periode !!!\"))","v":"dagen duurd deze periode nog"},null,null,null,false]
[null,null,"      Er staat nu op de rekening : ",null,0,null,false,null,null,null,null,null,null,"             vink aan, wat is af of bijgeschreven"]
[null,"incasso","               Als alles is verekend :",null,{"$f":"E532+I540-I559","v":0},null,false,null,null,null,null,null,null,null,null,null,null,"Deze periode naar bureaublad in .pdf"]
[null,"datum",null,null,null,null,false,null,null,null,null,null,null,"klik op de desbetreffende icoon, voor de internet site"]
[null,{"$f":"jaaroverzicht!B8","v":0},{"$f":"jaaroverzicht!D8","v":0},{"$f":"IF(G535=TRUE,\"\",E535)","v":0},{"$f":"jaaroverzicht!P8","v":0},null,false]
[null,{"$f":"jaaroverzicht!B9","v":0},{"$f":"jaaroverzicht!D9","v":0},{"$f":"IF(G536=TRUE,\"\",E536)","v":0},{"$f":"jaaroverzicht!P9","v":0},null,false]
[null,{"$f":"jaaroverzicht!B10","v":0},{"$f":"jaaroverzicht!D10","v":0},0,{"$f":"jaaroverzicht!P10","v":0},null,false,null,"nog niet "]
[null,{"$f":"jaaroverzicht!B11","v":0},{"$f":"jaaroverzicht!D11","v":0},0,{"$f":"jaaroverzicht!P11","v":0},null,false,null,"ontvangen"]
[null,{"$f":"jaaroverzicht!B12","v":0},{"$f":"jaaroverzicht!D12","v":0},0,{"$f":"jaaroverzicht!P12","v":0},null,false,null,"totaal"]
[null,{"$f":"jaaroverzicht!B13","v":0},{"$f":"jaaroverzicht!D13","v":0},0,{"$f":"jaaroverzicht!P13","v":0},null,false,null,{"$f":"SUM(D535:D542)","v":0}]
[null,{"$f":"jaaroverzicht!B14","v":0},{"$f":"jaaroverzicht!D14","v":0},0,{"$f":"jaaroverzicht!P14","v":0},null,false]
[null,{"$f":"jaaroverzicht!B15","v":0},{"$f":"jaaroverzicht!D15","v":0},0,{"$f":"jaaroverzicht!P15","v":0},null,false]
[null,{"$f":"jaaroverzicht!B16","v":0},{"$f":"jaaroverzicht!D16","v":0},0,{"$f":"jaaroverzicht!P16","v":0},null,false]
[null,{"$f":"jaaroverzicht!B17","v":0},{"$f":"jaaroverzicht!D17","v":0},{"$f":"IF(G544=TRUE,\"\",E544)","v":0},{"$f":"jaaroverzicht!P17","v":0},null,false,null,null,null,null,null,null,"Jaaroverzicht alle inkomsten en uitgave`s"]
[null,{"$f":"jaaroverzicht!B18","v":0},{"$f":"jaaroverzicht!D18","v":0},0,{"$f":"jaaroverzicht!P18","v":0},null,false]
[null,{"$f":"jaaroverzicht!B19","v":0},{"$f":"jaaroverzicht!D19","v":0},0,{"$f":"jaaroverzicht!P19","v":0},null,false]
[null,{"$f":"jaaroverzicht!B20","v":0},{"$f":"jaaroverzicht!D20","v":0},0,{"$f":"jaaroverzicht!P20","v":0},null,false]
[null,{"$f":"jaaroverzicht!B21","v":0},{"$f":"jaaroverzicht!D21","v":0},0,{"$f":"jaaroverzicht!P21","v":0},null,false]
[null,{"$f":"jaaroverzicht!B22","v":0},{"$f":"jaaroverzicht!D22","v":0},0,{"$f":"jaaroverzicht!P22","v":0},null,false]
[null,{"$f":"jaaroverzicht!B23","v":0},{"$f":"jaaroverzicht!D23","v":0},0,{"$f":"jaaroverzicht!P23","v":0},null,false]
[null,{"$f":"jaaroverzicht!B24","v":0},{"$f":"jaaroverzicht!D24","v":0},0,{"$f":"jaaroverzicht!P24","v":0},null,false]
[null,{"$f":"jaaroverzicht!B25","v":0},{"$f":"jaaroverzicht!D25","v":0},0,{"$f":"jaaroverzicht!P25","v":0},null,false]
["..",{"$f":"jaaroverzicht!B26","v":0},{"$f":"jaaroverzicht!D26","v":0},0,{"$f":"jaaroverzicht!P26","v":0},null,false]
[null,{"$f":"jaaroverzicht!B27","v":0},{"$f":"jaaroverzicht!D27","v":0},0,{"$f":"jaaroverzicht!P27","v":0},null,false]
[null,{"$f":"jaaroverzicht!B28","v":0},{"$f":"jaaroverzicht!D28","v":0},0,{"$f":"jaaroverzicht!P28","v":0},null,false,null,null,null,null,null,null,null,null,null,null,"opgepast ! <> up to date leegmaken"]
[null,{"$f":"jaaroverzicht!B29","v":0},{"$f":"jaaroverzicht!D29","v":0},0,{"$f":"jaaroverzicht!P29","v":0},null,false,null,"nog niet"]
[null,{"$f":"jaaroverzicht!B30","v":0},{"$f":"jaaroverzicht!D30","v":0},0,{"$f":"jaaroverzicht!P30","v":0},null,false,null,"betaald"]
[null,{"$f":"jaaroverzicht!B31","v":0},{"$f":"jaaroverzicht!D31","v":0},0,{"$f":"jaaroverzicht!P31","v":0},null,false,null,"totaal",null,null,null,null,"Jaaroverzicht van alle eindsaldo`s - per maand",null,null,null,"Jaaroverzicht waarbij het eindsaldo steeds werdt meegenomen naar de volgende maand"]
[null,{"$f":"jaaroverzicht!B32","v":0},{"$f":"jaaroverzicht!D32","v":0},0,{"$f":"jaaroverzicht!P32","v":0},null,false,null,{"$f":"SUM(D543:D572)","v":0}]
[null,{"$f":"jaaroverzicht!B33","v":0},{"$f":"jaaroverzicht!D33","v":0},0,{"$f":"jaaroverzicht!P33","v":0},null,false]
[null,{"$f":"jaaroverzicht!B34","v":0},{"$f":"jaaroverzicht!D34","v":0},0,{"$f":"jaaroverzicht!P34","v":0},null,false]
[null,{"$f":"jaaroverzicht!B35","v":0},{"$f":"jaaroverzicht!D35","v":0},0,{"$f":"jaaroverzicht!P35","v":0},null,false]
[null,{"$f":"jaaroverzicht!B36","v":0},{"$f":"jaaroverzicht!D36","v":0},0,{"$f":"jaaroverzicht!P36","v":0},null,false]
[null,{"$f":"jaaroverzicht!B37","v":0},{"$f":"jaaroverzicht!D37","v":0},0,{"$f":"jaaroverzicht!P37","v":0},null,false]
[null,{"$f":"jaaroverzicht!B38","v":0},{"$f":"jaaroverzicht!D38","v":0},0,{"$f":"jaaroverzicht!P38","v":0},null,false]
[null,{"$f":"jaaroverzicht!B39","v":0},{"$f":"jaaroverzicht!D39","v":0},0,{"$f":"jaaroverzicht!P39","v":0},null,false]
[null,{"$f":"jaaroverzicht!B40","v":0},{"$f":"jaaroverzicht!D40","v":0},0,{"$f":"jaaroverzicht!P40","v":0},null,false]
[null,{"$f":"jaaroverzicht!B41","v":0},{"$f":"jaaroverzicht!D41","v":0},{"$f":"IF(G568=TRUE,\"\",E568)","v":0},{"$f":"jaaroverzicht!P41","v":0},null,false]
[null,{"$f":"jaaroverzicht!B42","v":0},{"$f":"jaaroverzicht!D42","v":0},{"$f":"IF(G569=TRUE,\"\",E569)","v":0},{"$f":"jaaroverzicht!P42","v":0},null,false]
[null,{"$f":"jaaroverzicht!B43","v":0},{"$f":"jaaroverzicht!D43","v":0},0,{"$f":"jaaroverzicht!P43","v":0},null,false]
[null,{"$f":"jaaroverzicht!B44","v":0},{"$f":"jaaroverzicht!D44","v":0},0,{"$f":"jaaroverzicht!P44","v":0},null,false]
[null,{"$f":"jaaroverzicht!B45","v":0},{"$f":"jaaroverzicht!D45","v":0},0,{"$f":"jaaroverzicht!P45","v":0},null,false]
[null,"Nog tegoed",null,{"$f":"jaaroverzicht!P46","v":0},{"$f":"I540","v":0}]
[null,"Nog te betalen",null,{"$f":"jaaroverzicht!P47","v":0},{"$f":"I559","v":0}]
[]
[]
[]
[]
[]
[]
[]
[]
[]
[]
[]
[]
[]
[]
[]
[]
[]
[]
[]
[]
[]
[]
[]
[]
[]
[]
[]
[]
[]
[]
[]
[]
[]
[]
[]
[]
[]
[]
[]
[]
[]
[]
[]
[]
[]
[]
[]
[]
[]
[]
[]
[]
[]
[]
[]
[]
[]
[]
[]
[]
[]
[]
[]
[]
[]
[]
[]
[]
[]
[]
[]
[]
[]
[]
[]
[]
[]
[]
[]
[]
[]
[]
[]
[]
[]
[]
[]
[]
[]
[]
[]
[]
[]
[]
[]
[]
[]
[]
[]
[]
[]
[]
[]
[]
[]
[]
[]
[]
[]
[]
[]
[]
[]
[]
[]
[]
[]
[]
[]
[]
[]
[]
[]
[]
[]
[]
[]
[]
[]
[]
[]
[]
[]
[]
[]
[]
[]
[]
[]
[]
[]
[]
[]
[]
[]
[]
[]
[]
[]
[]
[]
[]
[]
[]
[]
[]
[]
[]
[]
[]
[]
[]
[]
[]
[]
[]
[]
[]
[]
[]
[]
[]
[]
[]
[]
[]
[]
[]
[]
[]
[]
[]
[]
[]
[]
[]
[]
[]
[]
[]
[]
[]
[]
[]
[]
[]
[]
[]
[]
[]
[]
[]
[]
[]
[]
[]
[]
[]
[]
[]
[]
[]
[]
[]
[]
[]
[]
[]
[]
[]
[]
[]
[]
[]
[]
[]
[]
[]
[]
[]
[]
[]
[]
[]
[]
[]
[]
[]
[]
[]
[]
[]
[]
[]
[]
[]
[]
[]
[]
[]
[]
[]
[]
[]
[]
[]
[]
[]
[]
[]
[]
[]
[]
[]
[]
[]
[]
[]
[]
[]
[]
[]
[]
[]
[]
[]
[]
[]
[]
[]
[]
[]
[]
[]
[]
[]
[]
[]
[]
[]
[]
[]
[]
[]
[]
[]
[]
[]
[]
[]
[]
[]
[]
[]
[]
[]
[]
[]
[]
[]
[]
[]
[]
[]
[]
[]
[]
[]
[]
[]
[]
[]
[]
[]
[]
[]
[]
[]
[]
[]
[]
[]
[]
[]
[]
[]
[]
[]
[]
[]
[]
[]
[]
[]
[]
[]
[]
[]
[]
[]
[]
[]
[]
[]
[]
[]
[]
[]
[]
[]
[]
[]
[]
[]
[]
[]
[]
[]
[]
[]
[]
[]
[]
[]
[]
[]
[]
[]
[]
[]
[]
[]
[]
[]
[]
[]
[]
[]
[]
[]
[]
[]
[]
[]
[]
[]
[]
[]
[]
[]
[]
[]
[]
[]
[]
[]
[]
[]
[]
[]
[]
[]
[]
[]
[]
[]
[]
[]
[]
[]
[]
[]
[]
[]
[]
[]
[]
[]
[]
[]
[]
[]
[]
[]
[]
[]
[]
[]
[]
[]
[]
[]
[]
[]
[]
[]
[]
[]
[]
[]
[]
[]
[]
[]
[]
[]
[]
[]
[]
[]
[]
[]
[]
[]
[]
[]
[]
[]
[]
[]
[]
[]
[]
[]
[]
[]
[]
[]
[]
[]
[]
[]
[]
[]
[]
[]
[]
[]
[]
[]
[]
[]
[]
[]
[]
[]
[]
[]
[]
[]
[]
[]
[]
[]
[]
[]
[]
[]
[]
[]
[]
[]
[]
[]
[]
[]
[]
[]
[]
[]
[]
[]
[]
[]
[]
[]
[]
[]
[]
[]
[]
[]
[]
[]
[]
[]
[]
[]
[]
[]
[]
[]
[]
[]
[]
[]
[]
[]
[]
[]
[]
[]
[]
[]
[]
[]
[]
[]
[]
[]
[]
[]
[]
[]
[]
[]
[]
[]
[]
[]
[]
[]
[]
[]
[]
[]
[]
[]
[]
[]
[]
[]
[]
[]
[]
[]
[]
[]
[]
[]
[]
[]
[]
[]
[]
[]
[]
[]
[]
[]
[]
[]
[]
[]
[]
[]
[]
[]
[]
[]
[]
[]
[]
[]
[]
[]
[]
[]
[]
[]
[]
[]
[]
[]
[]
[]
[]
[]
[]
[]
[]
[]
[]
[]
[]
[]
[]
[]
[]
[]
[]
[]
[]
[]
[]
[]
[]
[]
[]
[]
[]
[]
[]
[]
[]
[]
[]
[]
[]
[]
[]
[]
[]
[]
[]
[]
[]
[]
[]
[]
[]
[]
[]
[]
[]
[]
[]
[]
[]
[]
[]
[]
[]
[]
[]
[]
[]
[]
[]
[]
[]
[]
[]
[]
[]
[]
[]
[]
[]
[]
[]
[]
[]
[]
[]
[]
[]
[]
[]
[]
[]
[]
[]
[]
[]
[]
[]
[]
[]
[]
[]
[]
[]
[]
[]
[]
[]
[]
[]
[]
[]
[]
[]
[]
[]
[]
[]
[]
[]
[]
[]
[]
[]
[]
[]
[]
[]
[]
[]
[]
[]
[]
[]
[]
[]
[]
[]
[]
[]
[]
[]
[]
[]
[]
[]
[]
[]
[]
[]
[]
[]
[]
[]
[]
[]
[]
[]
[]
[]
[]
[]
[]
[]
[]
[]
[]
[]
[]
[]
[]
[]
[]
[]
[]
[]
[]
[]
[]
[]
[]
[]
[]
[]
[]
[]
[]
[]
[]
[]
[]
[]
[]
[]
[]
[]
[]
[]
[]
[]
[]
[]
[]
[]
[]
[]
[]
[]
[]
[]
[]
[]
[]
[]
[]
[]
[]
[]
[]
[]
[]
[]
[]
[]
[]
[]
[]
[]
[]
[]
[]
[]
[]
[]
[]
[]
[]
[]
[]
[]
[]
[]
[]
[]
[]
[]
[]
[]
[]
[]
[]
[]
[]
[]
[]
[]
[]
[]
[]
[]
[]
[]
[]
[]
[]
[]
[]
[]
[]
[]
[]
[]
[]
[]
[]
[]
[]
[]
[]
[]
[]
[]
[]
[]
[]
[]
[]
[]
[]
[]
[]
[]
[]
[]
[]
[]
[]
[]
[]
[]
[]
[]
[]
[]
[]
[]
[]
[]
[]
[]
[]
[]
[]
[]
[]
[]
[]
[]
[]
[]
[]
[]
[]
[]
[]
[]
[]
[]
[]
[]
[]
[]
[]
[]
[]
[]
[]
[]
[]
[]
[]
[]
[]
[]
[]
[]
[]
[]
[]
[]
[]
[]
[]
[]
[]
[]
[]
[]
[]
[]
[]
[]
[]
[]
[]
[]
[]
[]
[]
[]
[]
[]
[]
[]
[]
[]
[]
[]
[]
[]
[]
[]
[]
[]
[]
[]
[]
[]
[]
[]
[]
[]
[]
[]
[]
[]
[]
[]
[]
[]
[]
[]
[]
[]
[]
[]
[]
[]
[]
[]
[]
[]
[]
[]
[]
[]
[]
[]
[]
[]
[]
[]
[]
[]
[]
[]
[]
[]
[]
[]
[]
[]
[]
[]
[]
[]
[]
[]
[]
[]
[]
[]
[]
[]
[]
[]
[]
[]
[]
[]
[]
[]
[]
[]
[]
[]
[]
[]
[]
[]
[]
[]
[]
[]
[]
[]
[]
[]
[]
[]
[]
[]
[]
[]
[]
[]
[]
[]
[]
[]
[]
[]
[]
[]
[]
[]
[]
[]
[]
[]
[]
[]
[]
[]
[]
[]
[]
[]
[]
[]
[]
[]
[]
[]
[]
[]
[]
[]
[]
[]
[]
[]
[]
[]
[]
[]
[]
[]
[]
[]
[]
[]
[]
[]
[]
[]
[]
[]
[]
[]
[]
[]
[]
[]
[]
[]
[]
[]
[]
[]
[]
[]
[]
[]
[]
[]
[]
[]
[]
[]
[]
[]
[]
[]
[]
[]
[]
[]
[]
[]
[]
[]
[]
[]
[]
[]
[]
[]
[]
[]
[]
[]
[]
[]
[]
[]
[]
[]
[]
[]
[]
[]
[]
[]
[]
[]
[]
[]
[]
[]
[]
[]
[]
[]
[]
[]
[]
[]
[]
[]
[]
[]
[]
[]
[]
[]
[]
[]
[]
[]
[]
[]
[]
[]
[]
[]
[]
[]
[]
[]
[]
[]
[]
[]
[]
[]
[]
[]
[]
[]
[]
[]
[]
[]
[]
[]
[]
[]
[]
[]
[]
[]
[]
[]
[]
[]
[]
[]
[]
[]
[]
[]
[]
[]
[]
[]
[]
[]
[]
[]
[]
[]
[]
[]
[]
[]
[]
[]
[]
[]
[]
[]
[]
[]
[]
[]
[]
[]
[]
[]
[]
[]
[]
[]
[]
[]
[]
[]
[]
[]
[]
[]
[]
[]
[]
[]
[]
[]
[]
[]
[]
[]
[]
[]
[]
[]
[]
[]
[]
[]
[]
[]
[]
[]
[]
[]
[]
[]
[]
[]
[]
[]
[]
[]
[]
[]
[]
[]
[]
[]
[]
[]
[]
[]
[]
[]
[]
[]
[]
[]
[]
[]
[]
[]
[]
[]
[]
[]
[]
[]
[]
[]
[]
[]
[]
[]
[]
[]
[]
[]
[]
[]
[]
[]
[]
[]
[]
[]
[]
[]
[]
[]
[]
[]
[]
[]
[]
[]
[]
[]
[]
[]
[]
[]
[]
[]
[]
[]
[]
[]
[]
[]
[]
[]
[]
[]
[]
[]
[]
[]
[]
[]
[]
[]
[]
[]
[]
[]
[]
[]
[]
[]
[]
[]
[]
[]
[]
[]
[]
[]
[]
[]
[]
[]
[]
[]
[]
[]
[]
[]
[]
[]
[]
[]
[]
[]
[]
[]
[]
[]
[]
[]
[]
[]
[]
[]
[]
[]
[]
[]
[]
[]
[]
[]
[]
[]
[]
[]
[]
[]
[]
[]
[]
[]
[]
[]
[]
[]
[]
[]
[]
[]
[]
[]
[]
[]
[]
[]
[]
[]
[]
[]
[]
[]
[]
[]
[]
[]
[]
[]
[]
[]
[]
[]
[]
[]
[]
[]
[]
[]
[]
[]
[]
[]
[]
[]
[]
[]
[]
[]
[]
[]
[]
[]
[]
[]
[]
[]
[]
[]
[]
[]
[]
[]
[]
[]
[]
[]
[]
[]
[]
[]
[]
[]
[]
[]
[]
[]
[]
[]
[]
[]
[]
[]
[]
[]
[]
[]
[]
[]
[]
[]
[]
[]
[]
[]
[]
[]
[]
[]
[]
[]
[]
[]
[]
[]
[]
[]
[]
[]
[]
[]
[]
[]
[]
[]
[]
[]
[]
[]
[]
[]
[]
[]
[]
[]
[]
[]
[]
[]
[]
[]
[]
[]
[]
[]
[]
[]
[]
[]
[]
[]
[]
[]
[]
[]
[]
[]
[]
[]
[]
[]
[]
[]
[]
[]
[]
[]
[]
[]
[]
[]
[]
[]
[]
[]
[]
[]
[]
[]
[]
[]
[]
[]
[]
[]
[]
[]
[]
[]
[]
[]
[]
[]
[]
[]
[]
[]
[]
[]
[]
[]
[]
[]
[]
[]
[]
[]
[]
[]
[]
[]
[]
[]
[]
[]
[]
[]
[]
[]
[]
[]
[]
[]
[]
[]
[]
[]
[]
[]
[]
[]
[]
[]
[]
[]
[]
[]
[]
[]
[]
[]
[]
[]
[]
[]
[]
[]
[]
[]
[]
[]
[]
[]
[]
[]
[]
[]
[]
[]
[]
[]
[]
[]
[]
[]
[]
[]
[]
[]
[]
[]
[]
[]
[]
[]
[]
[]
[]
[]
[]
[]
[]
[]
[]
[]
[]
[]
[]
[]
[]
[]
[]
[]
[]
[]
[]
[]
[]
[null,null,null,null,null,null,false]